Workbook

Sheet Portada

Sheet Indíce
B2: Indíce
B4: 1 | D4: Balance de Comprobación
B5: 2 | D5: Estado de Cambios en los Activos Netos Disponibles
B6: 3 | D6: Estado de Activos Netos Disponibles para Beneficios
B7: 4 | D7: Flujo de Efectivo
B8: 5 | D8: Estado de Cambios en el patrominio
B9: Nota 1 | D9: Ingresos Financieros por efectivo y equivalentes de efectivo
B10: Nota 2 | D10: Ingresos Financieros por inversiones en instrumentos financieros
B11: Nota 3 | D11: Ganancias por Diferencial Cambiario y unidades de desarrollo
B12: Nota 4 | D12: Ingresos Operativos
B13: Nota 5 | D13: Plan de Contribuciones
B14: Nota 6 | D14: Ajuste por deterioro y por valuación de instrumentos
B15: Nota 7 | D15: Salida de recursos
B16: Nota 8 | D16: Pérdidas por Diferencial Cambiario y unidades de desarrollo
B17: Nota 9 | D17: Gasto por estimación de Deterioro
B18: Nota 10 | D18: Gastos Generales
B19: Nota 11 | D19: Cuentas Corrientes y de Ahorro
B20: Nota 12 | D20: Inversiones en Instrumentos Financieros
B21: Nota 13 | D21: Productos y dividendos por cobrar asociados a inversiones en instrumentos financieros
B22: Nota 14 | D22: Cuentas por cobrar
B23: Nota 15 | D23: Aportes por cobrar
B24: Nota 16 | D24: Intangibles
B25: Nota 17 | D25: Retenciones a Pensionados
B26: Nota 18 | D26: Obligaciones Por Liquidar Empleados y Exempleados
B27: Nota 19 | D27: Obligaciones Transitorias por Liquidar
B28: Nota 20 | D28: Cotización Seguro De Enfermedad y Maternidad
B29: Nota 21 | D29: Provisiones para pensiones en curso de pago
B30: Nota 22 | D30: Cuentas de orden deudoras y acreedoras
B31: Nota 23 | D31: Rendimientos acumulados
B32: Nota 24 | D32: Resultados del Periodo
B33: Nota 25 | D33: Ganancias o pérdidas por diferencias de cambio y unidades de desarrollo
B34: Nota 26 | D34: Deterioro de activos financieros
B35: Nota 27 | D35: Instrumentos financieros - Al valor Razonable con cambios en el otro resultado integral
B36: Nota 28 | D36: Instrumentos financieros - Al costo amortizado
B37: Nota 29 | D37: Productos y dividendos por cobrar
B38: Nota 30 | D38: Cuentas por cobrar
B39: Nota 31 | D39: Aportes por cobrar
B40: Nota 32 | D40: Cuentas por pagar
B41: Nota 33 | D41: Provisión para pensiones en curso de pago
B42: Nota 34 | D42: Otros pasivos
B43: Nota 35 | D43: Aportaciones recibidas - Reservas en formación
B44: Nota 36 | D44: Ajuste por valuación de instrumentos financieros al valor razonzable con cambios en el ORI

Sheet Balance de Comprobación
C2: Fondo de Jubilaciones y Pensiones del Poder Judicial
C4: Balance de Comprobación
C6: Al 31 de Mayo 2020
C9: ACTIVO
C10: Cuentas Corrientes y De Ahorro | F10: 1.45942306e+10
C11: Al valor razonable con cambios en otros resultados | F11: 3.876484516e+11
C12: Al costo amortizado | F12: 1.942466314e+11
C13: Productos y dividendos por cobrar asociados a inve | F13: 9984473945
C14: Cuentas por cobrar | F14: 743302859
C15: Aportes por cobrar a los trabajadores | F15: 4772550301
C16: Aportes por cobrar al Patrono | F16: 2814090269
C17: Aportes por cobrar al Estado | F17: 275872294.3
C18: Otros Aportes por cobrar | F18: 207280032.9
C19: Valor de adquisición (software) | F19: 7618670
C20: (Amortización acumulada de software adquirido) | F20: -7618670
C21: GASTOS
C22: Otros Gastos Financieros | F22: 891527578.1
C23: Gastos por estimación del deterioro | F23: 149096126.7
C24: Gastos de administración | F24: 595147506.9
C25: PASIVO
C26: Retenciones a Pensionados | H26: 939266088.7
C27: Obligaciones por liquidar empleados y exempleados | H27: 3845542.63
C28: Obligaciones transitorias por liquidar | H28: 3626695118
C29: Provisiones | H29: 594891014.8
C30: Provisión para pensiones en curso de pago | H30: 5.941974433e+11
C31: PATRIMONIO
C32: Patrimonio | H32: 1.222739676e+10
C33: INGRESOS
C34: Ingresos financieros por efectivo y equivalentes de efectivo | H34: 39408670.78
C35: Ingresos Financieros por inversiones en instrumentos | H35: 3627737617
C36: Otros Ingresos Financieros | H36: 1662456546
C37: Ingresos operativos | H37: 3513857.03
C39: Sumas Iguales | F39: =SUM(F10:F24) -> 6.169226545e+11 | H39: =SUM(H26:H37) -> 6.169226545e+11 | I39: =+F39-H39 -> -0.001342773438
C45: Lic. Luis Guillermo Vásquez Ureña | F45: MBA. María Antonieta Herrera Charraun
C46: Jefe Subproceso Contable | F46: Jefa Proceso Presupuestario Contable
D52: MBA. Floribel Campos Solano
D54: Jefa a.i. Macroproceso Financiero Contable
C56: Realizado por:
C57: Licda. Yesenia Flores Chacón
C58: Coordinadora de Unidad 1 a.i.
C61: Observación: Enlace al Manual de Políticas Contables.

Sheet Cambios Act. Netos Disponibles
B1: Fondo de Jubilaciones y Pensiones
B2: Estado de Cambios en los Activos Netos Disponibles
B3: Por el mes terminado al 31/05/2020
B4: (En colones sin céntimos)
D7: SALDO MENSUAL | G7: SALDO ACUMULADO
C8: NOTAS
B9: SALDO INICIAL | E9: 1.730632263e+10 | F9: (1) | H9: 5970351615 | I9: (2)
B11: INGRESOS | E11: =D13+D23 -> 5333116692 | H11: =G13+G23 -> 2.953679817e+10
B13: INGRESOS FINANCIEROS | D13: =+D14+D16+D19 -> 5329602834 | G13: =+G14+G16+G19 -> 2.95068551e+10
B14: Ingresos Financieros por efectivo y equivalentes de efectivo | D14: =SUM(D15) -> 39408670.78 | G14: =SUM(G15) -> 194380527.8
B15: Productos por cobrar por intereses en cuentas corres | C15: Nota 1 | D15: =+'Nota 1'!G26 -> 39408670.78 | G15: =+'Nota 1'!G45 -> 194380527.8
B16: Ingresos Financieros por inversiones en instrumentos financieros | D16: =SUM(D17:D18) -> 3627737617 | G16: =SUM(G17:G18) -> 1.84293351e+10
B17: Al valor razonable con cambios en otros resultado | C17: Nota 2 | D17: =+'Nota 2'!I16 -> 2876645041 | G17: =+'Nota 2'!I25 -> 1.379505938e+10
B18: Al costo amortizado | C18: Nota 2 | D18: =+'Nota 2'!I18 -> 751092576.9 | G18: =+'Nota 2'!I27 -> 4634275725
B19: Otros ingresos financieros | D19: =SUM(D20:D22) -> 1662456546 | G19: =SUM(G20:G22) -> 1.088313947e+10
B20: Efectivo y equivalentes de efectivo $ | C20: Nota 3 | D20: =+'Nota 3'!E12 -> 33425904.94 | G20: =+'Nota 3'!F12 -> 104736517.7
B21: Al valor razonable con cambios en otro resultado integral | C21: Nota 3 | D21: =+'Nota 3'!E18 -> 1422849102 | G21: =+'Nota 3'!F18 -> 8956542115
B22: Al costo amortizado | C22: Nota 3 | D22: =+'Nota 3'!E20+'Nota 3'!E23+'Nota 3'!E29 -> 206181539.1 | G22: =+'Nota 3'!F20+'Nota 3'!F23+'Nota 3'!F29 -> 1821860839
B23: Ingresos Operativos | C23: Nota 4 | D23: =+'Nota 4'!E16 -> 3513857.03 | G23: =+'Nota 4'!F16 -> 29943069.17
B25: PLAN DE CONTRIBUCIONES | C25: Nota 5 | E25: =SUM(D28:D31) -> 7581191851 | H25: =SUM(G28:G31) -> 3.809407362e+10
B27: RESERVAS EN FORMACION
B28: De los trabajadores | D28: =+'Nota 5'!F14 -> 2994774454 | G28: =+'Nota 5'!G14 -> 1.514189353e+10
B29: Del Patrono | D29: =+'Nota 5'!F15 -> 3308653193 | G29: =+'Nota 5'!G15 -> 1.655379606e+10
B30: Del Estado | D30: =+'Nota 5'!F16 -> 324544335.7 | G30: =+'Nota 5'!G16 -> 1621841661
B31: De los Pensionados | D31: =+'Nota 5'!F17+'Nota 5'!F18 -> 953219867.9 | G31: =+'Nota 5'!G17+'Nota 5'!G18 -> 4776542363
B33: AJUSTES AL PATRIMONIO
B34: Ajuste por deterioro y por valuación de instrumentos | C34: Nota 6 | E34: =+'Nota 6'!E16 -> -3373079919 | H34: =+'Nota 6'!E24 -> 1.04396597e+10
B37: RESULTADO DEL PERIODO | E37: =SUM(D38) -> 3697345480
B38: Utilidad del Periodo | D38: =+'Nota 24'!D19 -> 3697345480
B40: TOTAL ADICIONES | E40: =E11+E25+E34 -> 9541228623 | H40: =H11+H25+H34 -> 7.80705315e+10
B42: SALIDA DE RECURSOS | E42: =D43 -> 9287037801 | H42: =G43 -> 5.435399621e+10
B43: Por Nuevos Pensionados | C43: Nota 7 | D43: =+'Nota 7'!E16 -> 9287037801 | G43: =+'Nota 7'!F16 -> 5.435399621e+10
B45: GASTOS | E45: =D47+D55+D57 -> 1635771212 | H45: =G47+G55+G57 -> 1.376214467e+10
B47: GASTOS FINANCIEROS | D47: =+D48 -> 891527578.1 | G47: =+G48 -> 1.031162259e+10
B48: Otros Gastos Financieros | D48: =+D49+D51 -> 891527578.1 | G48: =+G49+G51 -> 1.031162259e+10
B49: Pérdida por diferencial cambiario y unidades de desarrollo | D49: =SUM(D50) -> 981581.45 | G49: =SUM(G50) -> 70750757.51
B50: Efectivo y Equivalentes de Efectivo $ | C50: Nota 8 | D50: =+'Nota 8'!E12 -> 981581.45 | G50: =+'Nota 8'!F13 -> 70750757.51
B51: Inversiones en instrumentos financieros | D51: =+D52+D53 -> 890545996.6 | G51: =+G52+G53 -> 1.024087183e+10
B52: Al Valor Razonable con cambios en otro resultado integral | C52: Nota 8 | D52: =+'Nota 8'!E18 -> 499599622.4 | G52: =+'Nota 8'!F18 -> 8495785127
B53: Al Costo Amortizado | C53: Nota 8 | D53: =+'Nota 8'!E20+'Nota 8'!E23+'Nota 8'!E29 -> 390946374.2 | G53: =+'Nota 8'!F20+'Nota 8'!F23+'Nota 8'!F29 -> 1745086702
B55: Gastos por estimación del Deterioro | C55: Nota 9 | D55: =+'Nota 9'!E14+'Nota 9'!E20 -> 149096126.7 | G55: =+'Nota 9'!F14+'Nota 9'!F20 -> 447411955.6
B57: GASTOS DE ADMINISTRACIÓN | D57: =+D58 -> 595147506.9 | G57: =+G58 -> 3003110123
B58: Gastos Genrales | C58: Nota 10 | D58: =+'Nota 10'!F21 -> 595147506.9 | G58: =+'Nota 10'!G21 -> 3003110123
B60: TOTAL DE DEDUCCIONES | E60: =E42+E45 -> 1.092280901e+10 | H60: =H42+H45 -> 6.811614088e+10
B62: ACTIVOS NETOS DISPONIBLES PARA BENEFICIOS
B63: FUTUROS AL FINAL DEL PERIODO (3) | E63: =E9+E40-E60 -> 1.592474224e+10 | H63: =H9+H40-H60 -> 1.592474224e+10 | J63: =+E63-H63 -> 0
B66: Observaciones:
B67: (1) Saldo inicial mensual: Corresponde al total de activos disponibles para beneficios futuros al final del mes de Abril 2020.
B68: (2) Saldo acumulado: Pertenece al total de activos disponibles de beneficios futuros al final del año anterior (Diciembre 2019).
B69: (3) Activos Netos Disponibles para Beneficios Futuros al Final del Periodo: Corresponde a la suma del saldo inicial mas el total de adiciones, menos el total de deducciones.
B71: Lic. Luis Guillermo Vásquez Ureña | E71: MBA. María Antonieta Herrera Charraun
B72: Jefe Subproceso Contable | E72: Jefa Proceso Presupuestario Contable
C74: MBA. Floribel Campos Solano
C76: Jefa a.i. Macroproceso Financiero Contable
B78: Realizado por:
B79: Licda. Yesenia Flores Chacón
B80: Coordinadora de Unidad 1 a.i.
B81: Observación: Enlace al Manual de Políticas Contables.

Sheet Act. Netos Dispon. Beneficios
B2: Fondo de Jubilaciones y Pensiones del Poder Judicial
B3: Estado de Activos Netos Disponibles para Beneficios
B4: AL 31/05/2020
B5: (En colones sin céntimos)
C6: NOTAS
B7: EFECTIVO Y EQUIVALENTES DE EFECTIVO | E7: =D8 -> 1.45942306e+10
B8: Cuentas Corrientes y de Ahorro | C8: Nota 11 | D8: =+'Nota 11'!D23 -> 1.45942306e+10
B10: INVERSIONES EN INSTRUMENTOS FINANCIEROS | E10: =SUM(D12:D17) -> 5.918795569e+11
B12: Al Valor Razoanble con cambios en otro resultado integral | C12: Nota 12 | D12: =+'Nota 12'!G17 -> 3.876484516e+11
B13: Al Valor Razoanble con cambios en resultados | C13: Nota 12 | D13: =+'Nota 12'!G22 -> 0
B14: Al Costo Amortizado | C14: Nota 12 | D14: =+'Nota 12'!G31 -> 1.942466314e+11
B15: Vencidos y Restringidos | C15: Nota 12 | D15: 0
B16: Productos y dividendos por cobrar asociados a inversiones en instrumentos financieros | C16: Nota 13 | D16: =+'Nota 13'!G41 -> 9984473945
E18: =SUM(D20:D21) -> 743302859
B19: CUENTAS POR COBARA
B20: Impuesto sobre la renta por cobrar | C20: Nota 14 | D20: =+'Nota 14'!D13 -> 743302859
B22: APORTES POR COBRAR | E22: =SUM(D23:D26) -> 8069792897
B23: Aportes Por Cobrar A Los Trabajadores | C23: Nota 15 | D23: =+'Nota 15'!J12 -> 4772550301
B24: Aportes Por Cobrar Al Patrono | C24: Nota 15 | D24: =+'Nota 15'!J16 -> 2814090269
B25: Aportes Por Cobrar Al Estado | C25: Nota 15 | D25: =+'Nota 15'!J19 -> 275872294.3
B26: Otros Aportes Por Cobrar | C26: Nota 15 | D26: =+'Nota 15'!J22 -> 207280032.9
B28: OTROS ACTIVOS | E28: 0
B29: Intangibles | C29: Nota 16 | D29: =+'Nota 16'!H8 -> 0
B31: ACTIVO TOTAL | E31: =+E7+E10+E18+E22+E28 -> 6.152868833e+11 | G31: =+E31-E43 -> 1.592474224e+10
B33: CUENTAS POR PAGAR | E33: =SUM(D34:D36) -> 4569806749
B34: Retenciones A Pensionados | C34: Nota 17 | D34: =+'Nota 17'!E17 -> 939266088.7
B35: Obligaciones Por Liquidar Empleados y Exempleados | C35: Nota 18 | D35: =+'Nota 18'!C14 -> 3845542.57
B36: Obligaciones Transitorias por Liquidar | C36: Nota 19 | D36: =+'Nota 19'!D26 -> 3626695118
B38: PROVISIONES | E38: =D39 -> 594891014.8
B39: Cotización Seguro De Enfermedad y Maternidad | C39: Nota 20 | D39: =+'Nota 20'!F12 -> 594891014.8
B41: PROVISIONES PARA PENSIONES EN CURSO DE PAGO | C41: Nota 21 | E41: =+'Nota 21'!J16 -> 5.941974433e+11
B43: PASIVO TOTAL | E43: =E41+E38+E33 -> 5.99362141e+11
B45: ACTIVOS NETOS DISPONIBLES PARA BENEFICIOS FUTUROS (1) | E45: =+'Cambios Act. Netos Disponibles'!E63 -> 1.592474224e+10 | G45: =+E45-G31 -> -0.2088394165
B47: RESERVAS EN FORMACIÓN | C47: Nota 5 | E47: =SUM(D48:D51) -> 7581191851
B48: De los trabajadores | D48: =+'Nota 5'!F14 -> 2994774454
B49: Del patrono | D49: =+'Nota 5'!F15 -> 3308653193
B50: Del Estado | D50: =+'Nota 5'!F16 -> 324544335.7
B51: De los pensionados | D51: =+'Nota 5'!F17+'Nota 5'!F18 -> 953219867.9
B53: RENDIMIENTOS ACUMULADOS | C53: Nota 23 | E53: =SUM(D54:D55) -> 0
B54: Rendimientos devengados | D54: =+'Nota 23'!G14 -> 1775522493
B55: (Traslado de recursos a la provisión para pensiones en curso de pago) | D55: =+'Nota 23'!G15 -> -1775522493
B56: AJUSTES AL PATRIMONIO | C56: Nota 6 | E56: =SUM(D57) -> -3373079919
B57: Ajuste por deterioro y por valuación de instrumentos | D57: =+'Nota 6'!E16 -> -3373079919
B58: RESULTADO DEL PERIODO | C58: Nota 24 | E58: =SUM(D59) -> 3697345480
B59: Utilidad del periodo | D59: =+'Nota 24'!D19 -> 3697345480
B60: CUENTAS DE ORDEN | C60: Nota 22 | E60: =+'Nota 22'!D12 -> 331222636
B61: Observaciones:
B62: (1) Activos Netos Disponibles para Beneficios Futuros al Final del Periodo: Corresponde al total de activo menos el total de pasivo.
B66: Lic. Luis Guillermo Vásquez Ureña | C66: MBA. María Antonieta Herrera Charraun
B67: Jefe Subproceso Contable | C67: Jefa Proceso Presupuestario Contable
B72: MBA. Floribel Campos Solano
B73: Jefa a.i. Macroproceso Financiero Contable
B76: Realizado por:
B77: Licda. Yesenia Flores Chacón
B78: Coordinadora de Unidad 1 a.i.
B80: Observación: Enlace al Manual de Políticas Contables.

Sheet Flujo de Efectivo
B1: Fondo de Jubilaciones y Pensiones
B2: Flujo de Efectivo
B3: Por el mes terminado al 31/05/2020
B4: (En colones sin céntimos)
C6: NOTA | D6: Perido actual | E6: Periodo anterior
B7: Flujo de efectivo de las actividades de operación
B8: Resultados del período | C8: NOTA 24 | D8: 3697345480 | E8: 1775522493
B9: Partidas aplicadas a resultados que no requieren uso de fondos
B10: Aumento/(Disminución) por
B11: Depreciaciones y amortizaciones | D11: 0 | E11: 0
B12: Ganancias o pérdidas por diferencias de cambio y unidades de desarrollo | C12: NOTA 25 | D12: -770928968.2 | E12: 1338408111
B13: Ganancias o pérdidas por venta activos no financieros | D13: 0 | E13: 0
B14: Ingresos Financieros | D14: 0 | E14: 0
B15: Estimaciones por Inversiones | D15: 0 | E15: 0
B16: Estimaciones por cartera de crédito | D16: 0 | E16: 0
B17: Estimaciones por otros activos | D17: 0 | E17: 0
B18: Provisiones por prestaciones sociales | D18: 0 | E18: 0
B19: Otras provisiones | D19: 0 | E19: 0
B20: Deterioro de activos financieros | C20: NOTA 26 | D20: 149096126.7 | E20: 3054531.48
B21: Deterioro de propiedades, mobiliario y equipo | D21: 0 | E21: 0
B22: Deterioro de otros activos | D22: 0 | E22: 0
B23: Otros cargos (abonos) a resultado que no significan movimientos de efectivo | D23: 0 | E23: 0
B24: Gasto impuesto de renta | D24: 0 | E24: 0
B25: Flujos de efectivo por actividades de operación | D25: 0 | E25: 0
B26: Aumento/(Disminución) por | D26: 0 | E26: 0
B27: Efectivo y equivalentes de efectivo | D27: 0 | E27: 0
B28: Instrumentos financieros - Al valor Razonable con cambios en el otro resultado integral | C28: NOTA 27 | D28: -4836919592 | E28: -1.257076712e+10
B29: Instrumentos financieros - Al valor Razonable con cambios en Resultados
B30: Instrumentos financieros - Al costo amortizado | C30: NOTA 28 | D30: 9489508633 | E30: 1.143445784e+10
B31: Instrumentos financieros - Derivados | D31: 0 | E31: 0
B32: Cartera de créditos | D32: 0 | E32: 0
B33: Productos y dividendos por cobrar | C33: NOTA 29 | D33: -4227822392 | E33: -3955379198
B34: Cuentas por cobrar | C34: NOTA 30 | D34: -69631289.48 | E34: 357309301.6
B35: Aportes por cobrar | C35: NOTA 31 | D35: -485440077.7 | E35: 983134291.7
B36: Bienes y valores adquiridos en recuperación de créditos | D36: 0 | E36: 0
B37: Otros activos | D37: 0 | E37: 0
B38: Cuentas por pagar | C38: NOTA 32 | D38: 222062527.2 | E38: -245259773.8
B39: Productos por pagar - Derivados | D39: 0 | E39: 0
B40: Provisión para pensiones en curso de pago | C40: NOTA 33 | D40: 607270447.1 | E40: 733390161.1
B41: Otros pasivos | C41: NOTA 34 | D41: 215447.3 | E41: -3538243.4
B42: Impuesto sobre la renta | D42: 0 | E42: 0
B43: Flujos de efectivo por actividades de inversión | D43: 0 | E43: 0
B44: Aumento/(Disminución) por | D44: 0 | E44: 0
B45: Productos y dividendos cobrados | C45: NOTA 29 | D45: 2274182119 | E45: 2112958667
B46: Propiedades, planta y equipo | D46: 0 | E46: 0
B47: Intangibles | D47: 0 | E47: 0
B48: Otras actividades de inversión | D48: 0 | E48: 0
B49: Efectivo neto proveniente de actividades de inversión | D49: 0 | E49: 0
B50: Flujos de efectivo por actividades de financiación | D50: 0 | E50: 0
B51: Aumento/(Disminución) por: | D51: 0 | E51: 0
B52: Obligaciones Financieras | D52: 0 | E52: 0
B53: Aportaciones recibidas - Reservas en formación | C53: NOTA 35 | D53: 69676542.37 | E53: 71426485.85
B54: Dividendos | D54: 0 | E54: 0
B55: Otras actividades de financiación | D55: 0 | E55: 0
B56: Efectivo neto proveniente de actividades de financiación | D56: 0 | E56: 0
B57: Efectos de las ganancias o pérdidas de cambio en el efectivo y equivalentes al efectivo | D57: 0 | E57: 0
B58: Incremento (Disminución) neto de efectivo y equivalentes de efectivo | D58: 0 | E58: 0
B59: Efectivo y equivalentes de efectivo al principio del período | D59: 8475615599 | E59: 6440898046
B60: Efectivo y equivalentes de efectivo al final del período | D60: 1.45942306e+10 | E60: 8475615599
B65: Lic. Luis Guillermo Vásquez Ureña | C65: MBA. María Antonieta Herrera Charraun
B66: Jefe Subproceso Contable | C66: Jefa Proceso Presupuestario Contable
B71: MBA. Floribel Campos Solano
B72: Jefa a.i. Macroproceso Financiero Contable
B75: Realizado por:
B76: Licda. Yesenia Flores Chacón
B77: Coordinadora de Unidad 1 a.i.

Sheet Estado de Camb en el Patrimonio
B1: Fondo de Jubilaciones y Pensiones
B2: Estado de Cambios en el Patrimonio
B3: Por el mes terminado al 31/05/2020
B4: (En colones sin céntimos)
B5: Descripción [1] | C5: Notas | D5: Reservas en formación | E5: Rendimientos acumulados | F5: Ajustes al Patrimonio - otros resultados integrales | G5: Otras reservas | H5: Resultados del periodo | I5: TOTAL
B6: Saldo al 1 de abril de 2020 | D6: 1646634024 | E6: 4599735491 | F6: 2.06791043e+10 | G6: 0 | H6: 0 | I6: 2.692547382e+10
B7: Cambios en las políticas contables
B8: Corrección de errores materiales
B9: Resultado del 2020
B10: Reservas legales y otras reservas estatutarias
B11: Aportaciones recibidas | C11: NOTA 35 | D11: 71426485.85 | I11: 71426485.85
B12: (Traslado o liquidación de recursos) | C12: NOTA 23 | E12: -4599735491 | I12: -4599735491
B13: Superavit por revaluación de activos | I13: 0
B14: Ajuste por valuación de instrumentos financieros al valor razonzable con cambios en el ORI | C14: NOTA 36 | F14: -6866364680 | I14: -6866364680
B15: Ajuste por valuación de instrumentos derivados | I15: 0
B16: Reserva saldos deudores | I16: 0
B17: Utilidad (Pérdida) del periodo | C17: NOTA 24 | H17: 1775522493 | I17: 1775522493
B18: Saldo al 30 de abril de 2020 | D18: 1718060510 | E18: 0 | F18: 1.381273962e+10 | G18: 0 | H18: 1775522493 | I18: 1.730632263e+10
B19: Otros resultados integrales de 2020 | C19: NOTA 23 | E19: 1775522493 | H19: -1775522493
B20: Resultados Integrales Totales del 2020
B21: Saldo al 1 de mayo del 2020 | D21: 1718060510 | E21: 1775522493 | F21: 1.381273962e+10 | G21: 0 | H21: 0 | I21: 1.730632263e+10
B22: Cambios en las políticas contables
B23: Corrección de errores materiales | I23: 0
B24: Saldo corregido 2020 | I24: 0
B25: Ganancia o pérdida no reconocida en resultados Periodo 2 | I25: 0
B26: Resultado Periodo 2020 | I26: 0
B27: Otros resultados integrales 2020 | I27: 0
B28: Resultados Integrales Totales del 2020
B29: Reservas legales y otras reservas estatutarias | I29: 0
B30: Aportaciones recibidas (Contribución solidaria) | C30: NOTA 35 | D30: 69676542.37 | I30: 69676542.37
B31: (Traslado o liquidación de recursos) | C31: NOTA 23 | E31: -1775522493 | I31: -1775522493
B32: Superavit por revaluación de activos | I32: 0
B33: Ajuste por valuación de instrumentos financieros al valor razonzable con cambios en el ORI | C33: NOTA 36 | F33: -3373079919 | I33: -3373079919
B34: Ajuste por valuación de instrumentos derivados | I34: 0
B35: Reserva saldos deudores | I35: 0
B36: Utilidad (Pérdida) del periodo | C36: NOTA 24 | H36: 3697345480 | I36: 3697345480
B37: Saldo al 31 de mayo de 2020 | D37: 1787737052 | E37: 0 | F37: 1.04396597e+10 | G37: 0 | H37: 3697345480 | I37: 1.592474224e+10
B40: Nota: De acuerdo a lo indicado por la SUPEN el saldo de este estado debe coincidir con el dato del Estado de Cambios de activos netos disponibles.
B42: Lic. Luis Guillermo Vásquez Ureña | F42: MBA. María Antonieta Herrera Charraun
B43: Jefe Subproceso Contable | F43: Jefa Proceso Presupuestario Contable
C46: MBA. Floribel Campos Solano
D47: Jefa a.i. Macroproceso Financiero Contable
B49: Realizado por:
B50: Licda. Yesenia Flores Chacón
B51: Coordinadora de Unidad 1 a.i.

Sheet Nota 1
C2: Nota 1:
C3: Ingresos Financieros por efectivo y equivalentes de efectivo
C5: al 31 de Mayo de 2020
C7: Como resultado de los saldos que se mantienen en las cuentas corrientes del Banco Nacional de Costa Rica, Banco de Costa Rica y Banco Popular, al cierre del presente mes los intereses sobre saldos en cuentas corrientes son los siguientes:
C10: MENSUAL
C11: Cuenta Contable | E11: Banco | G11: Intereses Ganados en el Mes | I11: Tipo de Cambio | K11: Total $
C13: 510.01.04.00.00.1.00.01 | E13: Intereses Fondos Ctas Corrientes-Banco Nacional de CR 1234-0-¢ | G13: 491.8
C14: 510.01.04.00.00.1.00.02 | E14: Intereses Fondos Ctas Corrientes-Banco de Costa Rica 229-32-9-¢ | G14: 39237091.36
C15: 510.01.04.00.00.1.00.03 | E15: Intereses Fondos Ctas Corrientes-Banco Popular Cta 18-1019277-¢ | G15: 0
C16: 510.01.04.00.00.1.00.04 | E16: Intereses Fondos Ctas Corrientes-Banco de Costa Rica Cta 174961-7-¢ | G16: 0
C17: 510.01.04.00.00.1.00.05 | E17: Sobre equivalentes de efectivo ¢ | G17: 0
C18: 510.01.04.00.00.1.00.06 | E18: Reportos ¢ | G18: 0
C19: 510.01.04.00.00.2.00.01 | E19: Intereses Fondos Ctas Corrientes-Banco Nacional de CR Cta No 601277-7-$ | G19: 0
C20: 510.01.04.00.00.2.00.02 | E20: Intereses Fondos Ctas Corrientes-Banco Popular Cta No 1914-1-$ | G20: 0
C21: 510.01.04.00.00.2.00.03 | E21: Intereses Fondos Ctas Corrientes-Banco de Costa Rica 112247-9-$ | G21: 171087.62 | I21: 576.51 | K21: =+G21/I21 -> 296.7643579
C22: 510.01.04.00.00.2.00.04 | E22: Sobre equivalentes de efectivo $ | G22: 0
C23: 510.01.04.00.00.2.00.05 | E23: Reportos $ | G23: 0
C24: 510.01.04.00.00.4.00.01 | E24: Sobre equivalentes de efectivo (UD) | G24: 0
C25: 510.01.04.00.00.4.00.02 | E25: Reportos (UD) | G25: 0
E26: Total | G26: =SUM(G13:G21) -> 39408670.78 | K26: =SUM(K13:K21) -> 296.7643579
C29: ACUMULADO
C30: Cuenta Contable | E30: Banco | G30: Intereses Acumulados | I30: Tipo de Cambio | K30: Total $
C32: 510.01.04.00.00.1.00.01 | E32: Intereses Fondos Ctas Corrientes-Banco Nacional de CR 1234-0-¢ | G32: 3260.18
C33: 510.01.04.00.00.1.00.02 | E33: Intereses Fondos Ctas Corrientes-Banco de Costa Rica 229-32-9-¢ | G33: 191457579.4
C34: 510.01.04.00.00.1.00.03 | E34: Intereses Fondos Ctas Corrientes-Banco Popular Cta 18-1019277-¢ | G34: 163.07
C35: 510.01.04.00.00.1.00.04 | E35: Intereses Fondos Ctas Corrientes-Banco de Costa Rica Cta 174961-7-¢ | G35: 0
C36: 510.01.04.00.00.1.00.05 | E36: Sobre equivalentes de efectivo ¢ | G36: 0
C37: 510.01.04.00.00.1.00.06 | E37: Reportos ¢ | G37: 0
C38: 510.01.04.00.00.2.00.01 | E38: Intereses Fondos Ctas Corrientes-Banco Nacional de CR Cta No 601277-7-$ | G38: 0
C39: 510.01.04.00.00.2.00.02 | E39: Intereses Fondos Ctas Corrientes-Banco Popular Cta No 1914-1-$ | G39: 0
C40: 510.01.04.00.00.2.00.03 | E40: Intereses Fondos Ctas Corrientes-Banco de Costa Rica 112247-9-$ | G40: 2919525.18 | I40: 576.51 | K40: =+G40/I40 -> 5064.136234
C41: 510.01.04.00.00.2.00.04 | E41: Sobre equivalentes de efectivo $ | G41: 0
C42: 510.01.04.00.00.2.00.05 | E42: Reportos $ | G42: 0
C43: 510.01.04.00.00.4.00.01 | E43: Sobre equivalentes de efectivo (UD) | G43: 0
C44: 510.01.04.00.00.4.00.02 | E44: Reportos (UD) | G44: 0
E45: Total | G45: =SUM(G32:G40) -> 194380527.8 | K45: =SUM(K32:K40) -> 5064.136234

Sheet Nota 2
B2: Nota 2:
B3: Ingresos Financieros por inversiones en instrumentos financieros
B5: al 31 de Mayo de 2020
B9: De acuerdo con lo establecido por la SUPEN, en este grupo se registran las cuentas sobre intereses, dividendos y rendimientos sobre inversiones en instrumentos financieros, por efectivo y equivalentes de efectivo; tanto a nivel nacional y extranjero.
B12: MENSUAL
A13: Cuenta Contable | B13: Ingresos Financieros por inversiones en instrumentos financieros | D13: COLONES | F13: DOLARES | H13: UDES | I13: TOTAL
B15: Intereses, Dividendos y Rendimientos devengados
A16: 510.02.01 | B16: Al valor razonable con cambios en otros resultado integral | D16: 2485058562 | F16: 391586479.1 | H16: 0 | I16: =SUM(D16:H16) -> 2876645041
A17: 510.02.02 | B17: Al valor razonable con cambios en resultados | D17: 0 | F17: 0 | H17: 0 | I17: =SUM(D17:H17) -> 0
A18: 510.02.03 | B18: Al costo amortizado | D18: 636235162.2 | F18: 53361476.78 | H18: 61495937.84 | I18: =SUM(D18:H18) -> 751092576.9
B19: Total de Ingresos Financieros por inversiones en instrumentos financieros | D19: =SUM(D16:D18) -> 3121293724 | F19: =SUM(F16:F18) -> 444947955.9 | H19: =SUM(H16:H18) -> 61495937.84 | I19: =SUM(I16:I18) -> 3627737617
B21: Acumulado
A22: Cuenta Contable | B22: Ingresos Financieros por inversiones en instrumentos financieros | D22: COLONES | F22: DOLARES | H22: UDES | I22: TOTAL
B24: Intereses, Dividendos y Rendimientos devengados
A25: 510.02.01 | B25: Al valor razonable con cambios en otros resultado integral | D25: 1.171189457e+10 | F25: 2083164810 | H25: 0 | I25: =SUM(D25:H25) -> 1.379505938e+10
A26: 510.02.02 | B26: Al valor razonable con cambios en resultados | D26: 0 | F26: 0 | H26: 0 | I26: =SUM(D26:H26) -> 0
A27: 510.02.03 | B27: Al costo amortizado | D27: 4056941304 | F27: 270872121.4 | H27: 306462299.7 | I27: =SUM(D27:H27) -> 4634275725
B28: Total de Ingresos Financieros por inversiones en instrumentos financieros | D28: =SUM(D25:D27) -> 1.576883587e+10 | F28: =SUM(F25:F27) -> 2354036931 | H28: =SUM(H25:H27) -> 306462299.7 | I28: =SUM(I25:I27) -> 1.84293351e+10

Sheet Nota 3
B2: Nota 3:
B3: Ganancias por Diferencial Cambiario y unidades de desarrollo
B5: =+'Nota 2'!$B$5:$H$5 -> al 31 de Mayo de 2020
B8: Se registran otros ingresos referente a ganancia generada producto del diferencial cambiario en los instrumentos de la cartera del Fondo de Jubilaciones.
A11: Cuenta Contable | B11: Cuenta | D11: Moneda | E11: Mensual | F11: Acumulado
B12: Efectivo y Equivalentes de Efectivo | E12: =SUM(E13:E15) -> 33425904.94 | F12: =SUM(F13:F15) -> 104736517.7
A13: 510.04.10.01.00.2.00.01 | B13: Cuentas corrientes | D13: Dólares | E13: 33425904.94 | F13: 104736517.7
A14: 510.04.10.01.00.2.00.02 | B14: Sobre equivalentes de efectivo | D14: Dólares | E14: 0 | F14: 0
A15: 510.04.10.01.00.2.00.03 | B15: Reportos | D15: Dólares | E15: 0 | F15: 0
B17: Inversiones en instrumentos financieros | E17: =SUM(E18:E23) -> 1629030641 | F17: =SUM(F18:F23) -> 1.077840011e+10
A18: 510.04.10.02.01.2.00 | B18: Al valor razonable con cambios en otro resultado integral $ | D18: Dólares | E18: 1422849102 | F18: 8956542115
A19: 510.04.10.02.02.2.00 | B19: Al valor razonable con cambios en resultados $ | D19: Dólares | E19: 0 | F19: 0
A20: 510.04.10.02.03.2.00 | B20: Al costo amortizado $ | D20: Dólares | E20: 193353277.4 | F20: 1319064249
A21: 510.04.10.02.01.4.00 | B21: Al valor razonable con cambios en otro resultado integral (UD) | D21: UDES | E21: 0 | F21: 0
A22: 510.04.10.02.02.4.00 | B22: Al valor razonable con cambios en resultados (UD) | D22: UDES | E22: 0 | F22: 0
A23: 510.04.10.02.03.4.00 | B23: Al costo amortizado (UD) | D23: UDES | E23: 12828261.69 | F23: 502793743.3
B25: Cuentas, Productos y Dividendos por cobrar | E25: =SUM(E26:E33) -> 0 | F25: =SUM(F26:F33) -> 2846.2
A26: 510.04.10.03.00.2.00 | B26: Al valor razonable con cambios en otro resultado integral $ | D26: Dólares | E26: 0 | F26: 0
A27: 510.04.10.03.00.2.01 | B27: Al valor razonable con cambios en resultados $ | D27: Dólares | E27: 0 | F27: 0
A28: 510.04.10.03.00.2.02 | B28: Al costo amortizado $ | D28: Dólares | E28: 0 | F28: 0
A29: 510.04.10.03.00.2.03 | B29: Ganancia del Impuesto sobre la renta por cobrar $ | D29: Dólares | E29: 0 | F29: 2846.2
A30: 510.04.10.03.00.4.00 | B30: Al valor razonable con cambios en otros resultados integral (UD) | D30: UDES | E30: 0 | F30: 0
A31: 510.04.10.03.00.4.01 | B31: Al valor razonable con cambios en resultados (UD) | D31: UDES | E31: 0 | F31: 0
A32: 510.04.10.03.00.4.02 | B32: Al costo amortizado (UD) | D32: UDES | E32: 0 | F32: 0
A33: 510.04.10.03.00.4.03 | B33: Ganancia del Impuesto sobre la renta por cobrar (UD) | D33: UDES | E33: 0 | F33: 0
A49: Interpretación Gráfica
A50: Esta nota se complementa con la nota N° 8

Sheet Nota 4
B2: Nota 4:
B3: Ingresos Operativos
B5: =+'Nota 2'!$B$5:$H$5 -> al 31 de Mayo de 2020
B8: Comprende las cuentas para el registro de los ingresos originados por operaciones no frecuentes, saldos a favor en céntimos de transferencias al Sistema Centralizado de Recaudación (SICERE), específico para el Fondo de Jubilaciones y Pensiones del Poder Judicial.
A11: Cuenta Contable | B11: Cuenta | D11: Moneda | E11: Mensual | F11: Acumulado
B12: Otros ingresos operativos
A13: 513.02.04.00.00.1.00.01 | B13: Ingresos diversos ¢ | D13: Colones | E13: 3281884.86 | F13: 15200581.37
A14: 513.02.04.00.00.2.00.01 | B14: Ingresos diversos $ | D14: Dólares | E14: 231016.08 | F14: 14738672.42
A15: 513.02.04.00.00.4.00.01 | B15: Ingresos diversos (UDS) | D15: UDES | E15: 956.09 | F15: 3815.38
B16: Total Otros ingresos operativos | E16: =SUM(E13:E15) -> 3513857.03 | F16: =SUM(F13:F15) -> 29943069.17

Sheet Nota 5
B2: Nota 5:
B3: PLAN DE CONTRIBUCIONES
B5: =++'Nota 2'!$B$5:$H$5 -> al 31 de Mayo de 2020
B8: Comprende los aportes realizados por el Poder Judicial en su calidad de Patrono y Estado, los cuales se aplican sobre los salarios devengados por los servidores judiciales.
B10: Asimismo, está constituido por la contribución de los empleados, jubilados y pensionados judiciales, a los cuales en la actualidad se les deduce de su salario, jubilación y pensión.
A12: Cuenta Contable | B12: Aportes | D12: Porcentajes | F12: Mensual | G12: Acumulado
A14: 312.01.01.00.00.1.00 | B14: Trabajadores | D14: 0.13 | F14: 2994774454 | G14: 1.514189353e+10
A15: 312.02.01.00.00.1.00 | B15: Patrono | D15: 0.1436 | F15: 3308653193 | G15: 1.655379606e+10
A16: 312.03.01.00.00.1.00 | B16: Estado | D16: 0.0141 | F16: 324544335.7 | G16: 1621841661
A17: 312.04.01.00.00.1.00.01 | B17: Jubilados y Pensionados | D17: 0.13 | F17: 883543325.5 | G17: 4421740110
A18: 312.04.01.00.00.1.00.02 | B18: Contribución Solidaria | D18: - | F18: 69676542.37 | G18: 354802253.1
B20: Total Aportes | F20: =SUM(F14:F18) -> 7581191851 | G20: =SUM(G14:G18) -> 3.809407362e+10
B22: Notas:
B23: 1-) Cálculo del Monto acumulado
B24: Se debe restar el asiento de apertura en el balance acumulado
B25: Monto del Balance | D25: Asiento de apertura | F25: Acumulado
B26: 2.165824729e+11 | D26: 2.014405793e+11 | F26: =+B26-D26 -> 1.514189353e+10
B27: 2.584468565e+11 | D27: 2.418930604e+11 | F27: =+B27-D27 -> 1.655379606e+10
B28: 1.503435038e+10 | D28: 1.341250872e+10 | F28: 1621841661
B29: 5.138678953e+10 | D29: 4.696504942e+10 | F29: 4421740110
B30: 1787737052 | D30: 1432934799 | F30: 354802253.1
B31: 2-) Mediante la publicación de la Ley 9544, que reforma el Regimen de Jubilaciones y Pensiones del Poder Judicial y Acuerdo del Consejo Superior Sesión N°46-18 celebrada el 22/05/2018, art VI, se solicita realizar a partir de esta fecha el incremento al aporte obrero del 11% al 13%, así como el rebajo de la contribución especial, solidaria y redistributiva a las personas jubiladas y pensionadas, conforme el articulo 236 de esta Ley.
B33: 3-) En el Acuerdo del Consejo Superior, sesión N° 4-19 del 17 de enero de 2019 artículo XXXVI se acordó: "Tomar nota de la comunicación de la Dirección de Gestión Humana, en oficio DGH-004-2019 del 10 de enero de 2019, referente a el cambio realizado en el parámetro del aporte estatal al Fondo de Jubilaciones y Pensiones de un 0.58% a 1.24%, fundamentado en los recursos asignados por el Ministerio de Hacienda en la subpartida 60404, según lo establecido en la Ley de Presupuesto Ordinario y Extraordinario de la República para el Ejercicio Económico del 2019."
B35: 4-) En el aporte de trabajadores incluye el rubro de Reconocimiento de tiempo servido.
B36: 5-) Según la directriz DGPN-SD-0242-2019 del 12 de abril de 2019, el porcentaje del aporte estatal cambia a 1.41% a partir de enero de 2020.

Sheet Nota 6
B2: Nota 6:
B3: Ajuste por deterioro y por valuación de instrumentos
B5: =+'Nota 5'!B5:G5 -> al 31 de Mayo de 2020
B8: Se registran los ajustes al patrimonio que representan correcciones en su valor, como, valuación de instrumentos financieros y de derivados, según las reglas de valuación establecidas para las cuentas de activo.
A10: MENSUAL
A11: Cuenta Contable | B11: Cuenta | C11: Colón | D11: Dólar | E11: Mensual
A13: 314.02.01.00.00 | B13: Ganancias no realizadas por valuación de instr. | C13: -3158536833 | D13: 306291058.9 | E13: -2852245774
A14: 314.02.02.00.00 | B14: (Pérdidas no realizadas por valuación de instr. | C14: -119897464 | D14: -431282349.4 | E14: -551179813.5
A15: 314.02.03.00.00 | B15: Ajuste por deterioro de instrumentos financieros | C15: 8717275.04 | D15: 21628392.73 | E15: 30345667.77
B16: TOTAL | E16: =SUM(E13:E15) -> -3373079919
A18: Acumulado
A19: Cuenta Contable | B19: Cuenta | C19: Colón | D19: Dólar | E19: Acumulado
A21: 314.02.01.00.00 | B21: Ganancias no realizadas por valuación de instr. | C21: 1.487999268e+10 | D21: 441949004.5 | E21: 1.532194168e+10
A22: 314.02.02.00.00 | B22: (Pérdidas no realizadas por valuación de instr. | C22: -206591533.3 | D22: -5004351940 | E22: -5210943473
A23: 314.02.03.00.00 | B23: Ajuste por deterioro de instrumentos financieros | C23: 187642882.3 | D23: 141018614.4 | E23: 328661496.7
B24: TOTAL | E24: =SUM(E21:E23) -> 1.04396597e+10

Sheet Nota 7
B2: Nota 7:
B3: SALIDA DE RECURSOS
B5: =+'Nota 5'!B5:G5 -> al 31 de Mayo de 2020
B8: Corresponde al traslado de todos los recursos de la cuenta patrimonial “Reserva en Formación” a la cuenta Provisión para Pensiones en Curso de Pago”, por ende todos los recursos generados de los aportes, así como los rendimientos obtenidos por las inversiones se continúan registrando en la Provisión Para Pensiones en Curso de Pago.
D11: Cuenta | E11: Mensual | F11: Acumulado
D13: Aportes | E13: 7511515308 | F13: 3.773927137e+10
D14: Rendimientos | E14: 1775522493 | F14: 1.661472484e+10
D16: TOTAL | E16: =SUM(E13:E14) -> 9287037801 | F16: =SUM(F13:F14) -> 5.435399621e+10

Sheet Nota 8
B2: Nota 8:
B3: Pérdidas por Diferencial Cambiario y unidades de desarrollo
B5: =+'Nota 5'!B5:G5 -> al 31 de Mayo de 2020
B8: Se registran otros ingresos referente a pérdidas generada producto del diferencial cambiario en los instrumentos de la cartera del Fondo de Jubilaciones.
A11: Cuenta Contable | B11: Cuenta | D11: Moneda | E11: Mensual | F11: Acumulado
B12: Efectivo y Equivalentes de Efectivo | E12: =SUM(E13:E15) -> 981581.45 | F12: =SUM(F13:F15) -> 70750757.51
A13: 410.04.10.01.00.2.00.01 | B13: Cuentas corrientes | D13: Dólares | E13: 981581.45 | F13: 70750757.51
A14: 410.04.10.01.00.2.00.02 | B14: Sobre equivalentes de efectivo | D14: Dólares | E14: 0 | F14: 0
A15: 410.04.10.01.00.2.00.03 | B15: Reportos | D15: Dólares | E15: 0 | F15: 0
B17: Inversiones en instrumentos financieros | E17: =SUM(E18:E23) -> 890545933.6 | F17: =SUM(F18:F23) -> 1.024084949e+10
A18: 410.04.10.02.01.2.00 | B18: Al valor razonable con cambios en otro resultado integral $ | D18: Dólares | E18: 499599622.4 | F18: 8495785127
A19: 410.04.10.02.02.2.00 | B19: Al valor razonable con cambios en resultados $ | D19: Dólares | E19: 0 | F19: 0
A20: 410.04.10.02.03.2.00 | B20: Al costo amortizado $ | D20: Dólares | E20: 66824340.02 | F20: 1259661364
A21: 410.04.10.02.01.4.00 | B21: Al valor razonable con cambios en otro resultado integral (UD) | D21: UDES | E21: 0 | F21: 0
A22: 410.04.10.02.02.4.00 | B22: Al valor razonable con cambios en resultados (UD) | D22: UDES | E22: 0 | F22: 0
A23: 410.04.10.02.03.4.00 | B23: Al costo amortizado (UD) | D23: UDES | E23: 324121971.2 | F23: 485403003.5
B25: Cuentas, Productos y Dividendos por cobrar | E25: =SUM(E26:E33) -> 63.02 | F25: =SUM(F26:F33) -> 22335.03
A26: 410.04.10.03.00.2.00 | B26: Al valor razonable con cambios en otro resultado integral $ | D26: Dólares | E26: 0 | F26: 0
A27: 410.04.10.03.00.2.01 | B27: Al valor razonable con cambios en resultados $ | D27: Dólares | E27: 0 | F27: 0
A28: 410.04.10.03.00.2.02 | B28: Al costo amortizado $ | D28: Dólares | E28: 0 | F28: 0
A29: 410.04.10.03.00.2.03 | B29: Ganancia del Impuesto sobre la renta por cobrar $ | D29: Dólares | E29: 63.02 | F29: 22335.03
A30: 410.04.10.03.00.4.00 | B30: Al valor razonable con cambios en otros resultados integral (UD) | D30: UDES | E30: 0 | F30: 0
A31: 410.04.10.03.00.4.01 | B31: Al valor razonable con cambios en resultados (UD) | D31: UDES | E31: 0 | F31: 0
A32: 410.04.10.03.00.4.02 | B32: Al costo amortizado (UD) | D32: UDES | E32: 0 | F32: 0
A33: 410.04.10.03.00.4.03 | B33: Ganancia del Impuesto sobre la renta por cobrar (UD) | D33: UDES | E33: 0 | F33: 0
A44: Interpretación Gráfica
A45: Esta nota se complementa con la nota N° 3

Sheet Nota 9
B2: Nota 9:
B3: Gasto por estimación de Deterioro
B5: =+'Nota 7'!B5:E5 -> al 31 de Mayo de 2020
B8: Comprende los movimientos de la estimación de deterioro en activos sobre los instrumentos financieros, de cuentas, productos, dividendos y aportes por cobrar.
A11: Cuenta Contable | B11: Cuenta | D11: Moneda | E11: Mensual | F11: Acumulado
A12: 411.01.01.00.00.1.00.01 | B12: Al valor razonable con cambios en otro resultado integral | D12: Colones | E12: 8717275.04 | F12: 187642882.3
A13: 411.01.01.00.00.2.00.01 | B13: Al valor razonable con cambios en otro resultado integral | D13: Dólares | E13: 21628392.73 | F13: 141018614.4
B14: Total | E14: =SUM(E12:E13) -> 30345667.77 | F14: =SUM(F12:F13) -> 328661496.7
A16: Cuenta Contable | B16: Cuenta | D16: Moneda | E16: Mensual | F16: Acumulado
A17: 411.01.02.00.00.1.00.01 | B17: Al costo amortizado ¢ | D17: Colones | E17: 53809508.72 | F17: 53809508.72
A18: 411.01.02.00.00.2.00.01 | B18: Al costo amortizado $ | D18: Dólares | E18: 14913556.78 | F18: 14913556.78
A19: 411.01.02.00.00.4.00.01 | B19: Al costo amortizado (UD) | D19: UDES | E19: 50027393.38 | F19: 50027393.38
B20: Total | E20: =SUM(E17:E19) -> 118750458.9 | F20: =SUM(F17:F19) -> 118750458.9

Sheet Nota 10
B2: Nota 10:
B3: GASTOS GENERALES
B5: al 31 de Mayo de 2020
B8: Esta cuenta agrupa varias partidas, las cuales se describen a continuación:
A11: Cuenta Contable | B11: GASTOS GENERALES | D11: Moneda | F11: MENSUAL | G11: Acumulado
A13: 414.02.07.00.00.1 | B13: Servicios profesionales | D13: Colón | F13: 0 | G13: 0
A14: 414.02.08.00.00.1 | B14: Servicios bancarios ¢ | D14: Colón | F14: 65766.65 | G14: 339918.58
A15: 414.02.09.00.00.1 | B15: Cotización Seguro de enfermedad y maternidad | D15: Colón | F15: 594695627.1 | G15: 2976686313
A16: 414.02.14.00.00.1.00 | B16: Gastos diversos ¢ | D16: Colón | F16: 363331.13 | G16: 715460.86
A17: 414.02.08.00.00.2 | B17: Servicios bancarios $ | D17: Dólar | F17: 0 | G17: 1213966.1
A18: 414.02.14.00.00.2.00 | B18: Gastos diversos $ | D18: Dólar | F18: 22781.89 | G18: 24154448.51
A19: 414.02.14.00.00.4.00 | B19: Gastos diversos (UD) | D19: Udes | F19: 0.12 | G19: 16.03
B21: TOTAL DE GASTOS GENERALES | F21: =SUM(F13:F19) -> 595147506.9 | G21: =SUM(G13:G19) -> 3003110123
B23: Gastos por servicios bancarios:
B24: Corresponde a gastos por comisiones bancarias cobradas por el Banco Nacional , lo anterior a raíz de conclusión “Convenio Institucional entre el Poder Judicial y la referida Entidad Bancaria”, cuyo objeto consistía en que el Poder Judicial aceptaba realizar una serie de transacciones bancarias con el Banco Nacional, a efecto de recibir un trato preferencial en algunos servicios bancarios, como lo fueron: exoneración del pago de cualquier tipo de comisión (transferencias electrónicas, giros bancarios, emisión de estados de cuenta, transacciones “SINPE”, transferencias entre cuentas del Poder Judicial y el Fondo de Jubilaciones y Pensiones), dichos gastos son del conocimiento de la Dirección Ejecutiva, según oficios DGBI-SML-25-2016, 2232-DE-2016 y 2342-DE-2016.
B26: Cotización Seguro de Enfermedad y Maternidad:
B27: Carga social en la que incurre el Fondo como Patrono, con la Caja Costarricense del Seguro Social, por concepto de Enfermedad y Maternidad, correspondiente al 8.75% sobre las jubilaciones y pensiones canceladas.
B29: Gastos diversos
B30: Corresponde a diversos ajustes relacionados principalmente con las inversiones y cuentas relacionadas.

Sheet Nota 11
B2: Nota 11:
B3: Cuentas Corrientes y de Ahorro
B5: =+'Nota 10'!B5:F5 -> al 31 de Mayo de 2020
B8: El saldo en cuentas corrientes bancarias que mantiene el Fondo de Jubilaciones en colones y en dólares americanos son los siguientes:
A10: Cuenta Contable | B10: CUENTAS CORRIENTES Y DE AHORRO PROV. PARA PENSIONES EN CURSO DE PAGO | D10: TOTAL ¢ | F10: TIPO DE CAMBIO | H10: TOTAL $
A12: 110.02.01.01.00.1.00.01 | B12: Banco Nacional de C.R. Cta 1234-0 | D12: 99491.83
A13: 110.02.01.01.00.1.00.02 | B13: Banco de Costa Rica Cta 229-32-9 | D13: 9950347710
A14: 110.02.01.01.00.1.00.03 | B14: Banco de Costa Rica Cta 174961-7 | D14: 0
A15: 110.02.01.01.00.1.00.04 | B15: Banco Popular Cta 1019277-0 | D15: 0
A16: 110.02.01.01.00.1.00.05 | B16: Banco Nacional de C.R. 2413-8 | D16: 0
A17: 110.02.01.01.00.1.00.06 | B17: Banco de Costa Rica 349803-4 | D17: 82.23
A18: 110.02.01.01.00.1.00.07 | B18: Banco de Costa Rica 349824-7 | D18: 0
A19: 110.02.01.01.00.2.00.01 | B19: Banco de Costa Rica Cta. 112247-9 $ | D19: 4643175596 | F19: 576.51 | H19: 25382.59886
A20: 110.02.01.01.00.2.00.02 | B20: Banco Nacional de C.R. Cta 601227-7 $ | D20: 607722.25 | F20: 576.51 | H20: 933.1799965
A21: 110.02.01.01.00.2.00.03 | B21: Banco Popular Cta 1914-1 $ | D21: 0 | H21: 0
B23: TOTAL EN CUENTAS CORRIENTES Y DE AHORRO | D23: =SUM(D12:D21) -> 1.45942306e+10 | H23: =SUM(H19:H21) -> 26315.77885
B25: Nota:
B26: Los documentos pendientes de asocies y aprobaciones, se informaron a los Subprocesos correspondientes para su registro, y así el debido seguimiento.

Sheet Nota 12
B2: Nota 12:
B3: Inversiones en Instrumentos Financieros
B5: =+'Nota 11'!B5:H5 -> al 31 de Mayo de 2020
B8: Dicho rubro resume los diferentes movimientos de inversiones en colones y dólares de acuerdo al modelo de negocio considerando costo de adquisición (Valor Facial + Primas – Descuentos).
A10: Cuenta Contable | B10: Al valor razonable con cambios en otros resultados integral | D10: Colones | E10: Dólares | F10: Udes | G10: Total
A11: 120.01.00.00.00
B12: Valor de Adquisición | D12: 3.092125237e+11 | E12: 7.246948915e+10 | F12: 0 | G12: =+D12+E12 -> 3.816820129e+11
B13: (Amortización de principal) | D13: 0 | E13: 0 | F13: 0 | G13: =+D13+E13 -> 0
B14: (Amortización de Primas) | D14: -4560017641 | E14: -99479804.15 | F14: 0 | G14: -4659497445
B15: Amortización de Descuentos | D15: 362749040.5 | E15: 152188914.3 | F15: 0 | G15: 514937954.8
B16: Ajuste por valuación | D16: 1.467340114e+10 | E16: -4562402935 | F16: 0 | G16: 1.011099821e+10
B17: Total | D17: =SUM(D12:D16) -> 3.196886563e+11 | E17: =SUM(E12:E16) -> 6.795979532e+10 | F17: 0 | G17: =SUM(G12:G16) -> 3.876484516e+11
A19: Cuenta Contable | B19: Al valor razonable con cambios en resultados | D19: Colones | E19: Dólares | F19: Udes | G19: Total
A20: 120.02.00.00.00
B21: Valor de Adquisición
B22: Total | D22: 0 | E22: 0 | F22: 0 | G22: 0
A24: Cuenta Contable | B24: Al costo amortizado | D24: Colones | E24: Dólares | F24: Udes | G24: Total
A25: 120.03.00.00.00
B26: Valor de Adquisición | D26: 8.441618756e+10 | E26: 9945865127 | F26: 1.041670648e+11 | G26: =+D26+E26+F26 -> 1.985291175e+11
B27: (Amortización de principal) | D27: 0 | E27: 0 | F27: 0 | G27: =+D27+E27+F27 -> 0
B28: (Amortización de Primas) | D28: -110621823.5 | E28: 0 | F28: -4129671874 | G28: -4240293698
B29: Amortización de Descuentos | D29: 59164198.17 | E29: 0 | F29: 17393794.51 | G29: 76557992.68
B30: (Estimación por deterioro) | D30: -53809508.72 | E30: -14913556.78 | F30: -50027393.38 | G30: -118750458.9
B31: Total | D31: =SUM(D26:D30) -> 8.431092043e+10 | E31: =SUM(E26:E30) -> 9930951571 | F31: =SUM(F26:F30) -> 1.000047594e+11 | G31: =SUM(G26:G30) -> 1.942466314e+11
B33: Resumen | D33: Colones | E33: Dólares | F33: Udes | G33: Total
B34: Al valor razonable con cambios en otros resultados integral | D34: 3.196886563e+11 | E34: 6.795979532e+10 | F34: 0 | G34: =+D34+E34+F34 -> 3.876484516e+11
B35: Al valor razonable con cambios en resultados | D35: 0 | E35: 0 | F35: 0 | G35: =+D35+E35+F35 -> 0
B36: Al costo amortizado | D36: 8.431092043e+10 | E36: 9930951571 | F36: 1.000047594e+11 | G36: 1.942466314e+11
D38: =+D34+D35+D36 -> 4.039995767e+11 | E38: =+E34+E35+E36 -> 7.789074689e+10 | F38: =+F34+F35+F36 -> 1.000047594e+11
B46: Interpretación Gráfica

Sheet Nota 13
B2: Nota 13:
B3: Productos y dividendos por cobrar asociados a inversiones en instrumentos financieros
B5: =+'Nota 11'!B5:H5 -> al 31 de Mayo de 2020
B8: La cuenta se conforma por el registro de:
B10: · La parte proporcional de los intereses, rendimientos y dividendos por las inversiones, que fueron adquiridas por el Fondo.
B11: · Además comprende los registros de aquellas inversiones que a su fecha de vencimiento deben ser reclasificados según lo requerido por el ente Rector a las cuentas de vencidos y restringidos.
A14: Cuenta Contable | B14: Al valor razonable con cambios en otros resultados integral | D14: Colones | E14: Dólares | F14: Udes | G14: Total
A15: 120.07.01.01.00
B16: Intereses | D16: 7406189816 | E16: 449366202.1 | F16: 0 | G16: =SUM(D16:F16) -> 7855556018
B17: Rendimientos | D17: 0 | E17: 0 | F17: 0 | G17: =SUM(D17:F17) -> 0
B18: Dividendos | D18: 0 | E18: 2140904.39 | F18: 0 | G18: 2140904.39
B19: Total | D19: =SUM(D16:D18) -> 7406189816 | E19: =SUM(E16:E18) -> 451507106.5 | F19: 0 | G19: 7857696923
A21: Cuenta Contable | B21: Al valor razonable con cambios en resultados | D21: Colones | E21: Dólares | F21: Udes | G21: Total
A22: 120.07.01.02.00
B23: Intereses | D23: 0 | E23: 0 | F23: 0 | G23: 0
B24: Rendimientos | D24: 0 | E24: 0 | F24: 0 | G24: 0
B25: Dividendos | D25: 0 | E25: 0 | F25: 0 | G25: 0
B26: Total | D26: 0 | E26: 0 | F26: 0 | G26: 0
A28: Cuenta Contable | B28: Al costo amortizado | D28: Colones | E28: Dólares | F28: Udes | G28: Total
A29: 120.07.01.03.00
B30: Intereses | D30: 1364869454 | E30: 77658675.78 | F30: 415695631.9 | G30: =SUM(D30:F30) -> 1858223762
B31: Rendimientos | D31: 0 | E31: 0 | F31: 0 | G31: 0
B32: Dividendos | D32: 0 | E32: 268553260.8 | F32: - | G32: 0
B33: Total | D33: =SUM(D30:D32) -> 1364869454 | E33: =SUM(E30:E32) -> 346211936.6 | F33: =SUM(F30:F32) -> 415695631.9 | G33: =SUM(G30:G32) -> 1858223762
B36: Resumen | D36: Colones | E36: Dólares | F36: Udes | G36: Total
B37: Al valor razonable con cambios en otros resultados integral | D37: 7406189816 | E37: 451507106.5 | F37: 0 | G37: =SUM(D37:F37) -> 7857696923
B38: Al valor razonable con cambios en resultados | D38: 0 | E38: 0 | F38: 0 | G38: =SUM(D38:F38) -> 0
B39: Al costo amortizado | D39: 1364869454 | E39: 346211936.6 | F39: 415695631.9 | G39: 2126777023
D41: =SUM(D37:D40) -> 8771059270 | E41: =SUM(E37:E40) -> 797719043 | F41: 415695631.9 | G41: =SUM(G37:G40) -> 9984473945
A45: Interpretación Gráfica

Sheet Nota 14
B2: Nota 14:
B3: CUENTAS POR COBRAR
B5: =+'Nota 12'!B5:H5 -> al 31 de Mayo de 2020
B6: En esta cuenta se registran aquellas partidas que debe recuperar el Fondo y se conforma por los siguientes conceptos:
A8: Cuenta Contable | B8: Cuentas por Cobrar | D8: Monto
A10: 130.01.00.00.00 | B10: Impuesto Sobre La Renta Por Cobrar | D10: 743278636.9
A11: 130.03.01.00.00 | B11: Sumas pendientes de cobrar otras | D11: 24222.16
B13: Saldo: | D13: =SUM(D10:D12) -> 743302859
B15: 1) Corresponden aquellas sumas que debe recuperar el Régimen por concepto de exención del 8% del impuesto sobre la renta de los títulos valores, que por su situación particular, no es posible cobrarlos inmediatamente con el vencimiento de los cupones. El Subproceso de Ingresos indica lo siguiente con el seguimiento: (1) La Presidencia de la Corte remitió un oficio a Casa Presidencial para los años 2004 y 2005. La Dirección Ejecutiva con oficio 4167-DE-2019 del 11/09/2019 indicó al Director del Despacho de la Presidencia: "Traslado copia de oficio N° 737-TI-2019 de fecha 9 de setiembre en curso, referente a la devolución del impuesto sobre renta de vieja data, a efecto de que se nos informe si se ha tenido algún avance respecto a las conversaciones con el Presidente de la República, encomendadas por el Consejo Superior en sesión N° 84-18 celebrada el 25 de setiembre de 2018, artículo XV". Al respecto, la Presidencia de la Corte en el mes de setiembre de 2019, remite consulta por correo electrónico de fecha a Casa Presidencial el cual cita: "Siguiendo instrucciones superiores y en referencia al oficio adjunto, el cual fue recibido por el Ministerio de la Presidencia el 4 de abril de 2019, me permito consultarle si existe alguna respuesta al respecto." Se mantiene el seguimiento del caso. (2) La Presidencia de la Corte remitió un oficio a Grandes Contribuyentes para lo del periodo 2018. La Dirección Ejecutiva con oficio 4669-DE-2019 del 04 de octubre de 2019 remite a Financiero Contable el acuerdo del Consejo Superior de Sesión 80-19 del 12 de setiembre de 2019, mediante el cual se acordó: "...) Tener por recibido el oficio N° 4040-DE-2019 del 5 de setiembre de 2019, suscrito por la máster Ana Eugenia Romero Jenkins, Directora Ejecutiva, relacionado con las acciones legales procedentes en relación a la resolución DGCN-133-2019, emitida por la señora Patricia Castillo Vargas, directora de la Dirección de Grandes Contribuyentes Nacionales. 2.) Deberá el Departamento de Financiero Contable alertar a la Junta Administradora del Fondo de Pensiones del Poder Judicial, en el informe de traspaso de la Comisión del Fondo de Jubilaciones y Pensiones del Poder Judicial, sobre la situación expuesta en el criterio jurídico N° DJ-2361-2019 de fecha 3 de setiembre de 2019, suscrito por el máster Rodrigo Alberto Campos Hidalgo, Director Jurídico..." (3) El Subproceso de Ingresos realizó las gestiones correspondientes para la devolución de los correspondiente de Fondos Inmobiliarios. De lo anterior, se solicitará a dicho Subproceso de Ingresos que es el encargado de dichas cuentas el seguimiento del mismo. El cual indica que, en cuanto al criterio emitido por la firma Facio y Cañas que, con oficio 916-TI/UCC-2018 del 02 de octubre de 2018 se hizo del conocimiento de la Dirección Ejecutiva, de lo cual esa Dirección con oficio 4855-DE-2018 del 10 de octubre de 2018, indicó que se debe estar a espera del resultado del Recurso de Apelación contra la resolución N° DGCN-097-2018 de fecha 31 de mayo de 2018, en la cual se denegó la exención del Impuesto sobre la Renta en los rendimientos generados en operaciones de recompras o reportos realizadas por medio de una bolsa de valores y operaciones con fondos de inversión y fondos inmobiliarios.

Sheet Nota 15
B2: Nota 15:
B3: APORTES POR COBRAR
B5: Al 31 de Mayo de 2020
B8: Corresponden a los aporte de los trabajadores, del patrono, del estado y jubilados-Pensionados que se detallan a continuación:
A10: Cuenta Contable | B10: Nota | D10: Sub-nota | F10: APORTES POR COBRAR | H10: Detalle | J10: Total
A12: 150.01.00.00.00 | B12: 15.1 | F12: Aporte por cobrar a los trabajadores | J12: =SUM(H13:H15) -> 4772550301
D13: 15.1.1 | F13: Aporte Ordinario | H13: 391713.03
D14: 15.1.2 | F14: Aporte Ordinario S .Escolar | H14: 1162507678
D15: 15.1.3 | F15: Aporte Reconocimiento de tiempo servido | H15: 3609650910
A16: 150.02.00.00.00 | B16: 15.2 | F16: Aportes por cobrar al Patrono | J16: =SUM(H17:H18) -> 2814090269
D17: 15.2.1 | F17: Aportes Por Cobrar Poder Jud.-Patrono | H17: 1540768354
D18: 15.2.2 | F18: Apor. x Cobrar Poder Jud.-Patrono (S.E) | H18: 1273321915
A19: 150.03.00.00.00 | B19: 15.3 | F19: Aportes por cobrar al Estado | J19: =SUM(H20:H21) -> 275872294.3
D20: 15.3.1 | F20: Aportes Por Cobrar Poder Jud.-Estado | H20: 151131473.8
D21: 15.3.2 | F21: Apor. x Cobrar Poder Jud.-Estado (S.E) | H21: 124740820.5
A22: 150.04.00.00.00 | B22: 15.4 | F22: Otros aportes por cobrar | J22: =SUM(H23:H26) -> 207280032.9
D23: 15.4.1 | F23: O. Aportes Por Cobrar Jubilados | H23: 179068628.1
D24: 15.4.2 | F24: O. Aportes Por Cobrar Pensionados | H24: 26227166.47
D25: 15.4.3 | F25: O. Aportes Por Cobrar E. Deductoras | H25: 1984238.39
F28: TOTAL | J28: =SUM(J12:J26) -> 8069792897
B32: 15.1 Aportes por cobrar a los trabajadores
B33: Este grupo contempla las sumas por cobrar proveniente de la estimación mensual del salario escolar a los servidores activos del Poder Judicial. Adicionalmente, incluye los aportes por cobrar de las obligaciones por reconocimiento de tiempo servido fuera del Poder Judicial aprobado por el Consejo Superior de la Corte Suprema de Justicia, a servidores judiciales activos, para efectos de jubilación.
B35: 15.2 Aportes por cobrar al Patrono
B36: Se compone de las sumas pendientes de cobrar por aportes que recibe el Fondo de Jubilaciones y Pensiones del Estado en su calidad de patrono.
B38: 15.3 Aportes por cobrar al Estado
B39: Este grupo lo componen las sumas pendientes de cobrar por aportes al Estado que recibe el Fondo de Jubilaciones y Pensiones.
B40: 15.4 Otros aportes por cobrar
B41: Sumas canceladas de más a Jubilados y Pensionados
B43: • Por fallecimiento: Dineros girados de más a jubilados y pensionados fallecidos, donde la fecha de su defunción no fue conocida oportunamente. Es importante anotar que en estos casos el Macroproceso Financiero Contable realiza como uno de los mecanismos alternativos para la recuperación de las sumas giradas en demasía, una “Acta de autorización de rebajo”, mediante la cual los beneficiarios al Fondo de Socorro Mutuo designados por el jubilado fallecido, autorizan voluntariamente la deducción de ese beneficio, de las sumas pagadas de más por el Fondo de Jubilaciones. Dicha deducción se realiza solo con el consentimiento de los causahabientes, los cuales acceden a honrar las obligaciones del jubilado fallecido. Para los casos en donde el procedimiento no ha resultado factible, se analiza el caso y se eleva a conocimiento de las instancias correspondientes.
B45: • Estudios por sumas canceladas de más a jubilados y pensionados: Además se registran las sumas canceladas de más por conceptos diversos, entre los cuales los más relevantes son los montos pagados de más a jubilados que en determinado momento ejercieron un puesto en el Sector Público percibiendo otro sueldo del Estado, de sus bancos, de sus instituciones, de las municipalidades, de las juntas de educación y de las empresas de economía mixta, a los cuales se les suspendió el beneficio del Fondo de Jubilaciones tardíamente, girándoseles recursos en demasía que no les correspondía, de conformidad con lo que reza el artículo 234 de la Ley Orgánica del Poder Judicial.
B47: Aportes Reconocimiento de Tiempo Servido
B48: Corresponde a las contribuciones por cobrar, como resultado del reconocimiento de tiempo servido fuera del Poder Judicial aprobado por el Consejo Superior de la Corte Suprema de Justicia, a servidores judiciales activos y jubilados o pensionados que asumen la deuda de un ex jubilado, según el artículo 231 de la Ley Orgánica del Poder Judicial.
B50: Otros aportes por cobrar a Entidades Deductoras
B51: Corresponde a cuentas por cobrar a las entidades deductoras por conceptos diversos entre los cuales los más relevantes son producto de:
B53: · La anulación de pagos por concepto de asignaciones por exclusión de beneficiarios del Fondo (fallecimiento, mayoría de edad, matrimonio o cuando el beneficiario se encuentra laborando para otra Institución del Estado mientras recibía el beneficio de su jubilación por parte de este Fondo)
B55: · Diferencias en la aplicación de ajustes en los montos de las jubilaciones y pensiones que corresponden a deducciones en planilla que ya han sido giradas a dichas Entidades, cuando el Fondo se entera del suceso.

Sheet Nota 16
B2: Nota 16:
B3: INTANGIBLES
B5: =+'Nota 15'!B5:J5 -> Al 31 de Mayo de 2020
B7: Detalle | D7: Monto | F7: Amortización | H7: Total
B8: Sistema inversiones "Internet Systems Development Insyde S.A" | D8: 7618670 | F8: -7618670 | H8: 0
B11: Nota:
B12: Corresponde al registro de la compra del Sistema de Inversiones a la empresa Internet Systems Development Insyde S.A. con un valor de $14,750.00, valorado al tipo de cambio de la fecha de adquisición del activo (15 de agosto de 2007) de ¢516.52, para un total de ¢7,618,670. A dicho monto se descuenta la amortización acumulada al cierre del presente mes que asciende a ¢7,618,670 para un activo neto de ¢0.00. La vida útil del sistema en mención es de 5 años y considerando que fue registrado en setiembre del 2007 se encuentra depreciado en su totalidad, no obstante, a la fecha de este informe se encuentra en funcionamiento. En el periodo comprendido entre el 15 de julio a 12 de diciembre del 2011 la Dirección de Tecnología de Información realizó mejoras al sistema de Inversiones por la suma de ¢1.673.895. Lo anterior, de acuerdo con la información suministrada por la Dirección de Tecnología de la Información, mediante correo electrónico del 27 de abril del 2017 y oficio 1635-DTI-2017, dicho monto se encuentra registrado actualmente en los registros contables del Poder Judicial por igual suma. Con oficio 425-SC-2015 de 26 de agosto del 2015, se realizó la consulta a la Superintendencia de Pensiones (SUPEN) sobre la forma de registro contable de la información suministrada por la Dirección de Tecnología de Información, en virtud de que, en el Manual de Cuentas para el Régimen de Capitalización Colectiva emitido por dicha Superintendencia, no se observa alguna cuenta contable para el registro de la reevaluación de activos intangibles. La SUPEN ante la consulta realizada, indicó lo siguiente: “[…] conforme lo establecido en las Normas internacionales de Información Financiera (NIIF), se le comunica que no existe forma alguna de atribuir costo a un activo intangible luego del final de su vida útil: aunque esté en operación y generando beneficios, su valor en libros deberá seguir siendo cero…”

Sheet Nota 17
C2: Nota 17:
C4: Retenciones A Pensionados
C6: =+'Nota 16'!B5 -> Al 31 de Mayo de 2020
C9: Comprende las retenciones mensuales aplicadas en la planilla de jubilados y pensionados judiciales correspondientes a entidades deductoras, que realiza el Fondo a sus distintos beneficiarios, las cuales en el caso de la retención del impuesto sobre la renta y la cuota obrera por enfermedad y maternidad son honradas hasta el mes siguiente de su aplicación.
B12: Cuenta Contable | C12: RETENCIONES A JUBILADOS Y PENSIONADOS | E12: TOTAL
B14: 211.01.01.00.00.1.00.01 | C14: Impuesto Sobre La Renta | E14: 599509321.6
B15: 211.01.02.00.00.1.00.01 | C15: Caja Costarricense Seguro Social | E15: 339756767.1
C17: TOTAL DE RETENCIONES A JUBILADOS Y PENSIONADOS | E17: =SUM(E14:E16) -> 939266088.7

Sheet Nota 18
B2: Nota 18:
B3: Obligaciones Por Liquidar Empleados y Exempleados
B5: =+'Nota 17'!C6 -> Al 31 de Mayo de 2020
B7: En esta cuenta se registran sumas sujetas a devolución por parte del Fondo de Jubilaciones y Pensiones que corresponden a pagos recibidos de más en la cancelación de obligaciones por cobrar por reconocimiento de tiempo servido fuera del Poder Judicial, derivados por el traslado de cuotas que realiza la Caja Costarricense del Seguro Social u otro régimen de pensiones hacia el Fondo de Jubilaciones, las cuales deben abonarse a las cuentas de los servidores judiciales, sin embargo, algunos de esos traslados ingresan cuando ya el servidor ha cancelado la deuda, por lo que se genera un pasivo a favor de éste.
B9: OBLIGACIONES POR LIQUIDAR EMPL. Y EXEMPL. | C9: TOTAL
B11: ONGJ | C11: 3722763.78
B12: JTG | C12: 67742.62
B13: HRV | C13: 55036.17
B14: OBLIGACIONES POR LIQUIDAR EMPL. Y EXEMPL. | C14: =SUM(C11:C13) -> 3845542.57
B16: Con respecto al caso de ONGJ, se ha dado el seguimiento respectivo y el Subproceso de Ingresos indicó lo siguiente: registrado en febrero 19 producto de devolución de Traslado de cuotas de la CCSS por RTS, cuya deuda fue reversada porque fue dejada según lo ordenado por Consejo Superiorsesión 14-19 artículo LXIV del 19 de febrero de 2019, sin embargo se debe esperar a que ese Consejo defina a cuanto equivale el monto a deducido por ese concepto y analice informe de Gestión Humana en donde se calcula dicho tiempo. Mediante correo electrónico del 2 de julio de 2019 el Subproceso de Ingresos informa: "Con acuerdo del Consejo Superior de sesión 32-19 artículo XII, del 08 de mayo de 2019, se acordó: ": Solicitar criterio a la Dirección Jurídica, respecto a la procedencia de acreditar los recursos trasladados por la Caja Costarricense de Seguro Social (CCSS) al Fondo de Jubilaciones y Pensiones del Poder Judicial a nombre de los servidores.” De lo anterior, el Subproceso de Ingresos mantuvo una reunión con la Dirección Jurídica el 3 de octubre de 2019 en la cual acordaron que dicha Dirección remitiría el criterio jurídico. Con correo del 13 de abril 2020 el Proceso de Inversiones indica que se le consulto a la Dirección Juridica el pasado 12 de marzo de 2020 sobre este tema indicando que solicitaron una prórroga de dos meses al Consejo Superior.

Sheet Nota 19
B2: Nota 19:
B4: Obligaciones Transitorias por Liquidar
B6: =+'Nota 18'!B5:B5 -> Al 31 de Mayo de 2020
B9: En esta se registran sumas transitorias que deben liquidarse oportunamente y se compone de los siguientes rubros:
A11: Cuenta Contable | B11: Obligaciones Transitorias por Liquidar | D11: Saldo
A12: 211.07.01.00.00.1.00.01 | B12: Cuotas para otros regímenes | D12: 0
A13: 211.07.03.00.00.1.00.01 | B13: Benef. no retirados y por fallecimiento | D13: 55184801.99
A14: 211.07.03.00.00.1.01.01 | B14: Sumas en transito por aclarar ¢ | D14: 7754438.99
A15: 211.07.03.00.00.1.02.04 | B15: Institucione Financieras Banco Popular ¢ | D15: 498197.34
A16: 211.07.03.00.00.1.03.03 | B16: Instituciones Gubernamentales-Caja Costarricense Seguro Social | D16: 3804819.36
A17: 211.07.03.00.00.1.04.01 | B17: Anejud | D17: 148458.06
A18: 211.07.03.00.00.1.04.03 | B18: Otros-Errores Bancarios | D18: 4610.86
A19: 211.07.03.00.00.1.05.01 | B19: Transitoria de deducción | D19: 1260140.19
A20: 211.07.03.00.00.1.06.01 | B20: * Aporte Junta Administradora FJP | D20: 2704308376
A21: 211.07.03.00.00.1.06.02 | B21: * Aporte Junta Administradora FJP - Jubilados y Pensionados | D21: 770362614.7
A22: 211.07.03.00.00.1.07.01 | B22: Intereses ganados en cta cte Junta. Adm | D22: 83136409.55
A23: 211.07.03.00.00.2.00.01 | B23: Sumas en tránsito por aclarar $ | D23: 0
A24: 211.07.03.00.00.2.01.04 | B24: Instituciones Financieras-Banco Popular $ | D24: 232250.73
B26: Total Obligaciones Transitorias por Liquidar | D26: =SUM(D12:D24) -> 3626695118
B28: * Nota 1: Mediante la publicación de la Ley 9544, se aplica la reforma al capítulo IV, art 239, referente a la comisión por gastos administrativos, la cual indica: " Surgirá de deducir un cinco por mil de los sueldos de que devengen los servidores judicial, así como de las jubilaciones y las pensiones a cargo del Fondo. Con estos recursos se pagarán las dietas de los miembros de la Junta Administradora, los salarios de su personal y, en general, sus gastos administrativos...", dicho aporte dio inicio a partir del 22/05/2018.
B38: Con respecto a las sumas en tránsito por aclarar el monto de ¢2,766,747 más antiguo y se encuentra en análisis por parte del Subproceso de Ingresos, el cual indicó mediante correo electrónico del 9 de setiembre 2019 que la CCSS remitió una serie de informes de inspección y se está en el análisis para identificar los montos si corresponden al FJPPJ, por cuanto informarán cuando culminen. La CCSS el 28-10-2019 según oficio SARCL-691-10-2019 remitió la lista de los informes de inspección relacionados con este rubro, de lo cual con oficio 949-TI-2019 del 04-12-2019, se solicitó a la CCSS los informes faltantes en virtud que los remitidos anteriormente no corresponden. Y el monto de ¢ 18,237.45 corresponde a ingresos mayo 2019.
B40: El monto por pagar a la Caja Costarricense del Seguro Social, obedece a:
B41: o ¢2,890,336 correspondiente a pagos dobles efectuados por dicha entidad producto de informes de inspección por cuotas canceladas de más y devolución de aportes. Lo anterior fue comunicado a la Dirección Ejecutiva mediante oficio 293-SC-2013 del 5 de julio del 2013, siendo que, dicha Dirección informó mediante oficio 5912-DE-2013 que toma nota de lo anterior.
B42: o ¢2,888 por suma pagada de más por la C.C.S.S en el informe de inspección 1238-00249-2012-I, misma que fue informada a la Dirección Ejecutiva mediante oficio 383-SC-2013 del 4 de septiembre del 2013. Siendo que dicha Dirección mediante oficio 1861-DE/AL-2012 del 16 de setiembre del 2013 informa que se toma de lo informado.
B43: o ¢13,749 la cual obedece al caso de la señora MCSV dado que no corresponde la devolución efectuada por la C.C.S.S., en virtud que la Dirección Ejecutiva mediante oficio 555-DE/CA-2012 del 7 de junio del 2013, remitió resolución 3506-2012 del 7 de junio del 2012 en la cual ordena el archivo definitivo de la deuda por no proceder.
B44: o ¢843,454 corresponde a la devolución de cuotas obrero-patronales según resolución emitida por la C.C.S.S, mediante Informe de Inspección de dicha entidad No. 1238-00079-2015-I del 26 de enero de 2015.
B45: o ¢9.022 corresponde a la devolución de cuotas obrero-patronales según resolución emitida por la C.C.S.S, mediante Informe de Inspección de dicha entidad No. 1238-00274-2015-I del 09 de febrero de 2015.
B47: o El monto de ¢ 37,002, el Subproceso de Ingresos indica mediante correo electrónico del 12/08/2019 que se encuentra en proceso de verificar la naturaleza de los recursos, por lo que se encuentra en estudio
B48: o El monto de ¢ 8,368 con oficio SARCL-065-01-2019 la CCSS canceló del informe de inspección 1235-00902-2018-I el monto, sin embargo ya había sido cancelado mediante informe de inspección SARCL-0723-2018.
B50: Disminución cuenta de Aporte de Junta Administradora:
B51: A solicitud de la Junta Administradora del Fondo de Jubilaciones y Pensiones del Poder Judicial a partir de febrero 2020 se realizan traslados de los recursos a la cuenta bancaria de la Junta.
B52: Traslados contabilizados por mes:
B53: Febrero | D53: 3873684
B54: Marzo | D54: 24116334
B55: Abril | D55: 12367176.34
B56: Mayo | D56: 669683.97
B57: Total | D57: =SUM(D53:D56) -> 41026878.31

Sheet Nota 20
B2: Nota 20:
B4: Cotización Seguro De Enfermedad y Maternidad
B6: =+'Nota 19'!B6:D6 -> Al 31 de Mayo de 2020
B9: Este pasivo se conforma por la cuota patronal del 8.75% que el Fondo de Jubilaciones y Pensiones debe pagar mensualmente a la Caja Costarricense de Seguro Social (C.C.S.S.), según lo estipulado en el artículo 62 del Reglamento del Seguro Salud.
A11: Cuenta Contable | B11: Entidad | D11: Porcentaje | F11: Monto
A12: 213.03.00.00.00 | B12: Caja Costarricense del Seguro Social | D12: 0.0875 | F12: 594891014.8

Sheet Nota 21
B2: Nota 21:
B3: PROVISIONES PARA PENSIONES EN CURSO DE PAGO
B5: =+'Nota 20'!B6:F6 -> Al 31 de Mayo de 2020
B7: En esta cuenta se registra la totalidad de los recursos acumulados generados de las actividades del Fondo de Jubilaciones y Pensiones provenientes en su mayoría de los aportes recibidos de las cuotas obrero patronales-estatales, así como de los intereses netos ganados en inversiones, con el fin de atender las obligaciones que se deriven de los beneficios establecidos reglamentariamente para los jubilados y pensionados actuales así como de los nuevos jubilados y pensionados.
A10: Cuenta Contable | B10: Nota | D10: Sub-nota | F10: APORTES POR COBRAR | H10: Detalle | J10: Total
A12: 214.01.01.00.00 | B12: 22.1 | F12: Recursos recibido de reservas en formación | J12: 1.231223145e+12
A13: 214.01.02.00.00 | B13: 22.2 | F13: (Menos) Pago plan de beneficios | J13: 6.37025702e+11
A14: 214.01.02.00.00.1.02.01 | D14: 22.2.1 | F14: Traslados a otros regímenes | H14: 1085542002
F16: TOTAL | J16: =+J12-J13 -> 5.941974433e+11

Sheet Nota 22
B2: Nota 22:
B4: CUENTAS DE ORDEN DEUDORAS Y ACREDORAS
B6: =+'Nota 21'!B5:J5 -> Al 31 de Mayo de 2020
B9: En esta cuenta se registran los saldos de las cuentas por cobrar por concepto de reconocimiento de tiempo servido en otras dependencias o instituciones públicas, de aquellos servidores en condición de propietarios que renunciaron al Poder Judicial.
B11: Concepto | D11: Monto
B12: Cuentas por cobrar por reconocimiento de tiempo servido en otras dependencias o instituciones públicas, de aquellos servidores en condición de propietarios que renunciaron al Poder Judicial. | D12: 331222636

Sheet Nota 23
B2: Nota 23:
B4: Rendimientos Acumulados
B6: =+'Nota 21'!B5:J5 -> Al 31 de Mayo de 2020
B9: En esta cuenta se registran el traslado de los rendimientos del mes anterior antes del cierre del mes actual.
B11: Mes Actual
B12: Cuenta Contable | C12: Rendimientos Acumulados | D12: Colones | E12: Dólares | F12: UDES | G12: TOTAL
B14: 313.01.00.00.00 | C14: Rendimientos devengados | D14: 2553431214 | E14: -911627799.2 | F14: 133719077.8 | G14: =SUM(D14:F14) -> 1775522493
B15: 313.02.00.00.00 | C15: (Traslado de recursos a la provisión para pensiones | D15: -2553431214 | E15: 911627799.2 | F15: -133719077.8 | G15: =SUM(D15:F15) -> -1775522493
B16: Total de Rendimientos Acumulados | G16: =SUM(G14:G15) -> 0

Sheet Nota 24
B2: Nota 24:
B4: Resultado del periodo
B6: =+'Nota 21'!B5:J5 -> Al 31 de Mayo de 2020
B9: En esta cuenta se registran el resultado del periodo.
B11: Cuenta Contable | C11: Ingresos | D11: TOTAL
B12: 500.00.00.00.00 | C12: Ingresos | D12: 5333116692
B13: Total de Ingresos | D13: =SUM(D12:D12) -> 5333116692
B15: Cuenta Contable | C15: Gastos | D15: TOTAL
B16: 400.00.00.00.00 | C16: Gastos | D16: 1635771212
B17: Total de Gastos | D17: =SUM(D16:D16) -> 1635771212
B19: Total Utilidad | D19: =+D13-D17 -> 3697345480
B21: Este monto se traslada con el cierre de periodo a la cuenta de rendimientos acumulados y posteriormente el mes siguientes se traslada a la cuenta de la Provisión.

Sheet Nota 25
B2: Nota 25:
B3: Flujos de efectivo por actividades de operación
B4: Ganancias o pérdidas por diferencias de cambio y unidades de desarrollo
B6: =+'Nota 21'!B5:J5 -> Al 31 de Mayo de 2020
B9: Corresponde a la variación de la cuentas de ingresos y gastos de las ganancias o pérdidas por diferencial cambiario y unidades de desarrollo.
B11: Cuenta Contable | C11: Ingresos | D11: TOTAL
B12: 510.04.10.00.00 | C12: Ganancia por diferencial cambiario y unidades de desarrollo | D12: 1662456546
B13: 410.04.10.00.00 | C13: Pérdida por diferencial cambiario y unidades de desarrollo | D13: 891527578.1
B14: Total | D14: =+D12-D13 -> 770928968.2

Sheet Nota 26
B2: Nota 26:
B3: Flujos de efectivo por actividades de operación
B4: Deterioro de activos financieros
B6: =+'Nota 7'!B5:E5 -> al 31 de Mayo de 2020
B9: Comprende los movimientos de la estimación de deterioro en activos sobre los instrumentos financieros, de cuentas, productos, dividendos y aportes por cobrar.
A12: Cuenta Contable | B12: Cuenta | D12: Moneda | E12: Mensual
A13: 411.01.01.00.00.1.00.01 | B13: Al valor razonable con cambios en otro resultado integral | D13: Colones | E13: 8717275.04
A14: 411.01.01.00.00.2.00.01 | B14: Al valor razonable con cambios en otro resultado integral | D14: Dólares | E14: 21628392.73
B15: Total | E15: =SUM(E13:E14) -> 30345667.77
A17: Cuenta Contable | B17: Cuenta | D17: Moneda | E17: Mensual
A18: 411.01.02.00.00.1.00.01 | B18: Al costo amortizado ¢ | D18: Colones | E18: 53809508.72
A19: 411.01.02.00.00.2.00.01 | B19: Al costo amortizado $ | D19: Dólares | E19: 14913556.78
A20: 411.01.02.00.00.4.00.01 | B20: Al costo amortizado (UD) | D20: UDES | E20: 50027393.38
B21: Total | E21: =SUM(E18:E20) -> 118750458.9

Sheet Nota 27
B2: Nota 27:
B3: Flujos de efectivo por actividades de operación
B4: Instrumentos financieros - Al valor Razonable con cambios en el otro resultado integral
B8: =+'Nota 7'!B5:E5 -> al 31 de Mayo de 2020
B11: Comprende los movimientos efectivos correspondientes a las Inversiones al Al valor razonable con cambios en otro resultado integral
B14: Instrumentos financieros - Al valor Razonable con cambios en el otro resultado integral
B15: Instrumentos financieros - Al valor Razonable con cambios en el otro resultado integral | C15: 2204422973
B16: Mas
B17: Ajuste por deterioro de instrumentos financieros (314.02.03) | C17: 30345667.77
B18: Ajustes al Patrimonio (valuación y deterioro) | C18: 3373079919
B19: Diferencial cambiario neto del mes(negativo) | C19: -770928968.2
B20: Total | C20: =SUM(C15:C19) -> 4836919592

Sheet Nota 28
B2: Nota 28:
B3: Flujos de efectivo por actividades de operación
B4: Instrumentos financieros - Al costo amortizado
B8: =+'Nota 7'!B5:E5 -> al 31 de Mayo de 2020
B11: Comprende los movimientos efectivos correspondientes a las Inversiones al Instrumentos financieros - Al costo amortizado
A14: Cuenta Contable | B14: Al costo amortizado | C14: Total Mes anterior | D14: Total Mes Actual | E14: Variación
A15: 120.03.00.00.00
B16: Valor de Adquisición | C16: 2.07998673e+11 | D16: =+'Nota 12'!G26 -> 1.985291175e+11 | E16: =+D16-C16 -> -9469555427
B17: (Amortización de principal) | C17: 0 | D17: =+'Nota 12'!G27 -> 0 | E17: =+D17-C17 -> 0
B18: (Amortización de Primas) | C18: -4218439043 | D18: =+'Nota 12'!G28 -> -4240293698 | E18: -21854654.91
B19: Amortización de Descuentos | C19: 74656543.62 | D19: =+'Nota 12'!G29 -> 76557992.68 | E19: 1901449.06
B20: Total | C20: =SUM(C16:C19) -> 2.038548905e+11 | D20: =SUM(D16:D19) -> 1.943653818e+11 | E20: =SUM(E16:E19) -> -9489508633

Sheet Nota 29
B2: Nota 29:
B3: Flujos de efectivo por actividades de operación y de inversión
B4: Productos y dividendos por cobrar
B8: =+'Nota 7'!B5:E5 -> al 31 de Mayo de 2020
B11: La cuenta se conforma por el registro de:
B12: · La parte proporcional de los intereses, rendimientos y dividendos por las inversiones, que fueron adquiridas por el Fondo.
B13: · Además comprende los registros de aquellas inversiones que a su fecha de vencimiento deben ser reclasificados según lo requerido por el ente Rector a las cuentas de vencidos y restringidos.
B15: Actividades de Operación
B16: Aumentos | C16: Total
B17: Al valor razonable con cambios en otros resultados integral | C17: 3419980635
B18: Al costo amortizado | C18: 807841757.3
C20: =SUM(C17:C19) -> 4227822392
B21: Actividades de Inversión
B22: Disminuciones | C22: Total
B23: Al valor razonable con cambios en otros resultados integral | C23: 1428900270
B24: Al costo amortizado | C24: 845281849.4
C26: =+C23+C24 -> 2274182119

Sheet Nota 30
B2: Nota 30:
B3: Flujos de efectivo por actividades de operación
B4: Cuentas por cobrar
B8: =+'Nota 7'!B5:E5 -> al 31 de Mayo de 2020
B11: Partidas que debe recuperar el Fondo y se conforma por los siguientes conceptos:
B13: Cuentas por Cobrar | C13: Monto mes anterior | D13: Mes Actual | E13: Variación
B14: Impuesto Sobre La Renta Por Cobrar | C14: 673647347.4 | D14: 743278636.9 | E14: =+D14-C14 -> 69631289.48
B15: Sumas pendientes de cobrar otras | C15: 24222.16 | D15: 24222.16 | E15: =+D15-C15 -> 0
B16: Saldo: | C16: =SUM(C14:C15) -> 673671569.6 | D16: =SUM(D14:D15) -> 743302859 | E16: =SUM(E14:E15) -> 69631289.48

Sheet Nota 31
B2: Nota 31:
B3: Flujos de efectivo por actividades de operación
B4: Aportes por cobrar
B8: =+'Nota 7'!B5:E5 -> al 31 de Mayo de 2020
B12: Corresponden a los aporte de los trabajadores, del patrono, del estado y jubilados-Pensionados que se detallan a continuación:
C13: Mes anterior | E13: Mes actual | G13: Variación
A14: Cuenta Contable | B14: APORTES POR COBRAR | C14: Detalle | D14: Total | E14: Detalle | F14: Total
A16: 150.01.00.00.00 | B16: Aporte por cobrar a los trabajadores | D16: =SUM(C17:C19) -> 4581803650 | F16: =SUM(E17:E19) -> 4772550301 | G16: =+F16-D16 -> 190746651.2
B17: Aporte Ordinario | C17: 813038.41 | E17: 391713.03
B18: Aporte Ordinario S .Escolar | C18: 932148917.6 | E18: 1162507678
B19: Aporte Reconocimiento de tiempo servido | C19: 3648841694 | E19: 3609650910
A20: 150.02.00.00.00 | B20: Aportes por cobrar al Patrono | D20: =SUM(C21:C22) -> 2545081801 | F20: =SUM(E21:E22) -> 2814090269 | G20: =+F20-D20 -> 269008467.4
B21: Aportes Por Cobrar Poder Jud.-Patrono | C21: 1526262274 | E21: 1540768354
B22: Apor. x Cobrar Poder Jud.-Patrono (S.E) | C22: 1018819528 | E22: 1273321915
A23: 150.03.00.00.00 | B23: Aportes por cobrar al Estado | D23: =SUM(C24:C25) -> 249571008.4 | F23: =SUM(E24:E25) -> 275872294.3 | G23: =+F23-D23 -> 26301285.9
B24: Aportes Por Cobrar Poder Jud.-Estado | C24: 149794215.4 | E24: 151131473.8
B25: Apor. x Cobrar Poder Jud.-Estado (S.E) | C25: 99776793.02 | E25: 124740820.5
A26: 150.04.00.00.00 | B26: Otros aportes por cobrar | D26: =SUM(C27:C30) -> 207896359.8 | F26: =SUM(E27:E30) -> 207280032.9 | G26: =+F26-D26 -> -616326.87
B27: O. Aportes Por Cobrar Jubilados | C27: 179935433.1 | E27: 179068628.1
B28: O. Aportes Por Cobrar Pensionados | C28: 25963494.88 | E28: 26227166.47
B29: O. Aportes Por Cobrar E. Deductoras | C29: 1997431.87 | E29: 1984238.39
B32: TOTAL | D32: =SUM(D16:D30) -> 7584352820 | F32: =SUM(F16:F30) -> 8069792897 | G32: =SUM(G16:G30) -> 485440077.7

Sheet Nota 32
B2: Nota 32:
B3: Flujos de efectivo por actividades de operación
B4: Cuentas por pagar
B8: =+'Nota 7'!B5:E5 -> al 31 de Mayo de 2020
B11: Partidas correspondientes a las cuentas por pagar por los siguientes conceptos:
B13: Cuentas por Cobrar | C13: Monto mes anterior | D13: Monto mes actual | E13: Variación
B15: Retenciones a Pensionados | C15: 943814898.7 | D15: 939266088.7 | E15: =+D15-C15 -> -4548809.98
B16: Obligaciones por liquidar empleados y exempleados | C16: 3722763.84 | D16: 3845542.63 | E16: =+D16-C16 -> 122778.79
B17: Obligaciones transitorias por liquidar | C17: 3400206559 | D17: 3626695118 | E17: 226488558.4
B19: Saldo: | C19: =SUM(C15:C18) -> 4347744222 | D19: =SUM(D15:D18) -> 4569806749 | E19: =SUM(E15:E18) -> 222062527.2

Sheet Nota 33
B2: Nota 33:
B3: Flujos de efectivo por actividades de operación
B4: Provisión para pensiones en curso de pago
B8: =+'Nota 7'!B5:E5 -> al 31 de Mayo de 2020
B10: Recursos acumulados generados de las actividades del Fondo de Jubilaciones y Pensiones provenientes en su mayoría de los aportes recibidos de las cuotas obrero patronales-estatales, así como de los intereses netos ganados en inversiones, con el fin de atender las obligaciones que se deriven de los beneficios establecidos reglamentariamente para los jubilados y pensionados actuales así como de los nuevos jubilados y pensionados.
B13: Provisión para pensiones en curso de pago
B15: Provisión para pensiones en curso de pago | C15: 2382792940
B16: Menos
B17: Rendimientos acumulados | C17: -1775522493
B18: Total | C18: =SUM(C15:C17) -> 607270447.1

Sheet Nota 34
B2: Nota 34:
B3: Flujos de efectivo por actividades de operación
B4: Otros Pasivos
B8: =+'Nota 7'!B5:E5 -> al 31 de Mayo de 2020
B11: Lo correspondiente a cuota patronal del 8.75% que el Fondo de Jubilaciones y Pensiones debe pagar mensualmente a la Caja Costarricense de Seguro Social (C.C.S.S.).
B13: Entidad | C13: Monto mes anterior | D13: Monto mes actual | E13: Variación
B14: Caja Costarricense del Seguro Social | C14: 594675567.5 | D14: 594891014.8 | E14: =+D14-C14 -> 215447.3
B15: Total | C15: =SUM(C14) -> 594675567.5 | D15: =SUM(D14) -> 594891014.8 | E15: =SUM(E14) -> 215447.3

Sheet Nota 35
B2: Nota 35:
B3: Flujos de efectivo por actividades de inversión
B4: Aportaciones recibidas - Reservas en formación
B8: =+'Nota 7'!B5:E5 -> al 31 de Mayo de 2020
B11: Este rubro corresponde a la Contribución Solidaria
B13: Entidad | C13: Monto mes anterior | D13: Monto mes Actual
B14: Contribución Solidaria | C14: 71426485.85 | D14: 69676542.37
B15: Total | C15: =SUM(C14) -> 71426485.85 | D15: =SUM(D14) -> 69676542.37

Sheet Nota 36
B2: Nota 36:
B3: Estado de Cambios en el Patrimonio Neto
B4: Ajuste por valuación de instrumentos financieros al valor razonable con cambios en el ORI
B8: =+'Nota 7'!B5:E5 -> al 31 de Mayo de 2020
B11: Corresponde a la Valuación de precios de mercado correspondiente a las inversiones del valor razonzable con cambios en el ORI
B13: Entidad | C13: Monto mes anterior | D13: Monto mes Actual
B14: Valuación de instrumentos financieros | C14: 6866364680 | D14: 3373079919
B15: Total | C15: =SUM(C14) -> 6866364680 | D15: =SUM(D14) -> 3373079919
